Workbook

Sheet YL

Sheet Andmed
A1: KU091: TEATRITE ETENDUSED | Aasta, Kategooria, Lavastuse liik / žanr ning Näitaja | L1: milles veerg nimega Tüüp sisaldab sõna "lavastus", ei sisalda "Lastelavastus" ja ei sisalda ".." .
L3: Tüüp | M3: Tüüp | N3: Tüüp
B4: =IF(A9<>"";A9;B8) | L4: *lavastus* | M4: <>*Lastelavastus* | N4: <>*..*
B5: =_xlfn.FORMULATEXT(B9) -> =IF(A9="";B8;A9)
U6: =_xlfn.FORMULATEXT(U9) -> =IFERROR(T9*R9*1000;0) | X6: =_xlfn.FORMULATEXT(X9) -> =SUMIFS(Maksmus;Tüüp;$W9;Aasta;X$8) | AM6: =_xlfn.FORMULATEXT(AM9) -> =MAX(W9:AL9)
AM7: =_xlfn.FORMULATEXT(AN9) -> =INDEX($X$8:$AL$8;MATCH(AM9;X9:AL9;0))
A8: Aastad | B8: Aasta | C8: Tüüp | D8: Lavastused | E8: ..uuslavastused | F8: Etendused | G8: ..külalisetendused | H8: Vaatajad, tuhat | I8: Teatriskäigud 1000 elaniku kohta | J8: Keskmine piletihind, eurot | L8: Aasta | M8: Tüüp | N8: Lavastused | O8: ..uuslavastused | P8: Etendused | Q8: ..külalisetendused | R8: Vaatajad, tuhat | S8: Teatriskäigud 1000 elaniku kohta | T8: Keskmine piletihind, eurot | U8: Maksmus | W8: Tüüp | X8: 2007 | Y8: 2008 | Z8: 2009 | AA8: 2010 | AB8: 2011 | AC8: 2012 | AD8: 2013 | AE8: 2014 | AF8: 2015 | AG8: 2016 | AH8: 2017 | AI8: 2018 | AJ8: 2019 | AK8: 2020 | AL8: 2021 | AM8: Suurim kasu | AN8: Vastav aasta
A9: 2007 | B9: =IF(A9="",B8,A9) -> 2007 | C9: Kokku | D9: 414 | E9: 164 | F9: 4765 | G9: 1308 | H9: 1022.1 | I9: 761.8 | J9: 7.98 | L9: 2007 | M9: Sõnalavastus | N9: 214 | O9: 84 | P9: 2919 | Q9: 701 | R9: 568.7 | S9: 423.9 | T9: 8.76 | U9: =IFERROR(T9*R9*1000,0) -> 4981812 | W9: Sõnalavastus | X9: =SUMIFS(Maksmus,Tüüp,$W9,Aasta,X$8) -> 4981812 | Y9: =SUMIFS(Maksmus,Tüüp,$W9,Aasta,Y$8) -> 4989450 | Z9: =SUMIFS(Maksmus,Tüüp,$W9,Aasta,Z$8) -> 4210016 | AA9: =SUMIFS(Maksmus,Tüüp,$W9,Aasta,AA$8) -> 3831456 | AB9: =SUMIFS(Maksmus,Tüüp,$W9,Aasta,AB$8) -> 5578440 | AC9: =SUMIFS(Maksmus,Tüüp,$W9,Aasta,AC$8) -> 6081705 | AD9: =SUMIFS(Maksmus,Tüüp,$W9,Aasta,AD$8) -> 6080130 | AE9: =SUMIFS(Maksmus,Tüüp,$W9,Aasta,AE$8) -> 6558438 | AF9: =SUMIFS(Maksmus,Tüüp,$W9,Aasta,AF$8) -> 7070497 | AG9: =SUMIFS(Maksmus,Tüüp,$W9,Aasta,AG$8) -> 7757940 | AH9: =SUMIFS(Maksmus,Tüüp,$W9,Aasta,AH$8) -> 7872684 | AI9: =SUMIFS(Maksmus,Tüüp,$W9,Aasta,AI$8) -> 8364000 | AJ9: =SUMIFS(Maksmus,Tüüp,$W9,Aasta,AJ$8) -> 10078626 | AK9: =SUMIFS(Maksmus,Tüüp,$W9,Aasta,AK$8) -> 6413790 | AL9: =SUMIFS(Maksmus,Tüüp,$W9,Aasta,AL$8) -> 7110975 | AM9: =MAX(W9:AL9) -> 10078626 | AN9: =INDEX($X$8:$AL$8,MATCH(AM9,X9:AL9,0)) -> 2019
B10: =IF(A10="",B9,A10) -> 2007 | C10: Sõnalavastus | D10: 214 | E10: 84 | F10: 2919 | G10: 701 | H10: 568.7 | I10: 423.9 | J10: 8.76 | L10: 2007 | M10: Muusikalavastus | N10: 33 | O10: 11 | P10: 304 | Q10: 34 | R10: 147.8 | S10: 110.2 | T10: 11.36 | U10: =IFERROR(T10*R10*1000,0) -> 1679008 | W10: Muusikalavastus | X10: =SUMIFS(Maksmus,Tüüp,$W10,Aasta,X$8) -> 1679008 | Y10: =SUMIFS(Maksmus,Tüüp,$W10,Aasta,Y$8) -> 1954680 | Z10: =SUMIFS(Maksmus,Tüüp,$W10,Aasta,Z$8) -> 1534865 | AA10: =SUMIFS(Maksmus,Tüüp,$W10,Aasta,AA$8) -> 1992000 | AB10: =SUMIFS(Maksmus,Tüüp,$W10,Aasta,AB$8) -> 2112857 | AC10: =SUMIFS(Maksmus,Tüüp,$W10,Aasta,AC$8) -> 2366075 | AD10: =SUMIFS(Maksmus,Tüüp,$W10,Aasta,AD$8) -> 2534715 | AE10: =SUMIFS(Maksmus,Tüüp,$W10,Aasta,AE$8) -> 2296384 | AF10: =SUMIFS(Maksmus,Tüüp,$W10,Aasta,AF$8) -> 2384910 | AG10: =SUMIFS(Maksmus,Tüüp,$W10,Aasta,AG$8) -> 3269916 | AH10: =SUMIFS(Maksmus,Tüüp,$W10,Aasta,AH$8) -> 2641616 | AI10: =SUMIFS(Maksmus,Tüüp,$W10,Aasta,AI$8) -> 3394025 | AJ10: =SUMIFS(Maksmus,Tüüp,$W10,Aasta,AJ$8) -> 3401250 | AK10: =SUMIFS(Maksmus,Tüüp,$W10,Aasta,AK$8) -> 1604250 | AL10: =SUMIFS(Maksmus,Tüüp,$W10,Aasta,AL$8) -> 1095990 | AM10: =MAX(W10:AL10) -> 3401250 | AN10: =INDEX($X$8:$AL$8,MATCH(AM10,X10:AL10,0)) -> 2019
B11: 2007 | C11: ..draama | D11: 135 | E11: 51 | F11: 1846 | G11: 341 | H11: 287.9 | I11: 214.6 | J11: 7.83 | L11: 2007 | M11: Tantsulavastus | N11: 56 | O11: 27 | P11: 299 | Q11: 100 | R11: 54.1 | S11: 40.3 | T11: 8.85 | U11: 478785 | W11: Tantsulavastus | X11: =SUMIFS(Maksmus,Tüüp,$W11,Aasta,X$8) -> 478785 | Y11: =SUMIFS(Maksmus,Tüüp,$W11,Aasta,Y$8) -> 423168 | Z11: =SUMIFS(Maksmus,Tüüp,$W11,Aasta,Z$8) -> 400686 | AA11: =SUMIFS(Maksmus,Tüüp,$W11,Aasta,AA$8) -> 382356 | AB11: =SUMIFS(Maksmus,Tüüp,$W11,Aasta,AB$8) -> 829962 | AC11: =SUMIFS(Maksmus,Tüüp,$W11,Aasta,AC$8) -> 851880 | AD11: =SUMIFS(Maksmus,Tüüp,$W11,Aasta,AD$8) -> 875665 | AE11: =SUMIFS(Maksmus,Tüüp,$W11,Aasta,AE$8) -> 795872 | AF11: =SUMIFS(Maksmus,Tüüp,$W11,Aasta,AF$8) -> 1198512 | AG11: =SUMIFS(Maksmus,Tüüp,$W11,Aasta,AG$8) -> 1175776 | AH11: =SUMIFS(Maksmus,Tüüp,$W11,Aasta,AH$8) -> 1330656 | AI11: =SUMIFS(Maksmus,Tüüp,$W11,Aasta,AI$8) -> 1397032 | AJ11: =SUMIFS(Maksmus,Tüüp,$W11,Aasta,AJ$8) -> 1445310 | AK11: =SUMIFS(Maksmus,Tüüp,$W11,Aasta,AK$8) -> 765992 | AL11: =SUMIFS(Maksmus,Tüüp,$W11,Aasta,AL$8) -> 724948 | AM11: 1445310 | AN11: 2019
B12: 2007 | C12: ..komöödia | D12: 55 | E12: 21 | F12: 818 | G12: 308 | H12: 227.8 | I12: 169.8 | J12: 8.47 | L12: 2007 | M12: Nuku- ja objektiteatri lavastus | N12: . | O12: . | P12: . | Q12: . | R12: . | S12: . | T12: . | U12: 0 | W12: Nuku- ja objektiteatri lavastus | X12: =SUMIFS(Maksmus,Tüüp,$W12,Aasta,X$8) -> 0 | Y12: =SUMIFS(Maksmus,Tüüp,$W12,Aasta,Y$8) -> 0 | Z12: =SUMIFS(Maksmus,Tüüp,$W12,Aasta,Z$8) -> 0 | AA12: =SUMIFS(Maksmus,Tüüp,$W12,Aasta,AA$8) -> 0 | AB12: =SUMIFS(Maksmus,Tüüp,$W12,Aasta,AB$8) -> 193125 | AC12: =SUMIFS(Maksmus,Tüüp,$W12,Aasta,AC$8) -> 304854 | AD12: =SUMIFS(Maksmus,Tüüp,$W12,Aasta,AD$8) -> 242550 | AE12: =SUMIFS(Maksmus,Tüüp,$W12,Aasta,AE$8) -> 320784 | AF12: =SUMIFS(Maksmus,Tüüp,$W12,Aasta,AF$8) -> 291566 | AG12: =SUMIFS(Maksmus,Tüüp,$W12,Aasta,AG$8) -> 273060 | AH12: =SUMIFS(Maksmus,Tüüp,$W12,Aasta,AH$8) -> 292320 | AI12: =SUMIFS(Maksmus,Tüüp,$W12,Aasta,AI$8) -> 338436 | AJ12: =SUMIFS(Maksmus,Tüüp,$W12,Aasta,AJ$8) -> 287910 | AK12: =SUMIFS(Maksmus,Tüüp,$W12,Aasta,AK$8) -> 104178 | AL12: =SUMIFS(Maksmus,Tüüp,$W12,Aasta,AL$8) -> 64260 | AM12: 338436 | AN12: 2018
B13: 2007 | C13: ..tragikomöödia | D13: 11 | E13: 4 | F13: 120 | G13: 36 | H13: 27.7 | I13: 20.6 | J13: 6.53 | L13: 2007 | M13: Mitmeliigilavastus | N13: . | O13: . | P13: . | Q13: . | R13: . | S13: . | T13: . | U13: 0 | W13: Mitmeliigilavastus | X13: =SUMIFS(Maksmus,Tüüp,$W13,Aasta,X$8) -> 0 | Y13: =SUMIFS(Maksmus,Tüüp,$W13,Aasta,Y$8) -> 0 | Z13: =SUMIFS(Maksmus,Tüüp,$W13,Aasta,Z$8) -> 0 | AA13: =SUMIFS(Maksmus,Tüüp,$W13,Aasta,AA$8) -> 0 | AB13: =SUMIFS(Maksmus,Tüüp,$W13,Aasta,AB$8) -> 165312 | AC13: =SUMIFS(Maksmus,Tüüp,$W13,Aasta,AC$8) -> 473355 | AD13: =SUMIFS(Maksmus,Tüüp,$W13,Aasta,AD$8) -> 659842 | AE13: =SUMIFS(Maksmus,Tüüp,$W13,Aasta,AE$8) -> 508932 | AF13: =SUMIFS(Maksmus,Tüüp,$W13,Aasta,AF$8) -> 1212112 | AG13: =SUMIFS(Maksmus,Tüüp,$W13,Aasta,AG$8) -> 1000152 | AH13: =SUMIFS(Maksmus,Tüüp,$W13,Aasta,AH$8) -> 1191564 | AI13: =SUMIFS(Maksmus,Tüüp,$W13,Aasta,AI$8) -> 1387190 | AJ13: =SUMIFS(Maksmus,Tüüp,$W13,Aasta,AJ$8) -> 1721835 | AK13: =SUMIFS(Maksmus,Tüüp,$W13,Aasta,AK$8) -> 1301256 | AL13: =SUMIFS(Maksmus,Tüüp,$W13,Aasta,AL$8) -> 810030 | AM13: 1721835 | AN13: 2019
B14: 2007 | C14: ..muu sõnalavastus | D14: 13 | E14: 8 | F14: 135 | G14: 16 | H14: 25.3 | I14: 18.8 | J14: 11.25 | L14: 2007 | M14: Muu lavastus | N14: 25 | O14: 18 | P14: 100 | Q14: 55 | R14: 23.4 | S14: 17.4 | T14: 7.75 | U14: 181350 | W14: Muu lavastus | X14: =SUMIFS(Maksmus,Tüüp,$W14,Aasta,X$8) -> 181350 | Y14: =SUMIFS(Maksmus,Tüüp,$W14,Aasta,Y$8) -> 87200 | Z14: =SUMIFS(Maksmus,Tüüp,$W14,Aasta,Z$8) -> 37160 | AA14: =SUMIFS(Maksmus,Tüüp,$W14,Aasta,AA$8) -> 35767 | AB14: =SUMIFS(Maksmus,Tüüp,$W14,Aasta,AB$8) -> 24840 | AC14: =SUMIFS(Maksmus,Tüüp,$W14,Aasta,AC$8) -> 0 | AD14: =SUMIFS(Maksmus,Tüüp,$W14,Aasta,AD$8) -> 0 | AE14: =SUMIFS(Maksmus,Tüüp,$W14,Aasta,AE$8) -> 148800 | AF14: =SUMIFS(Maksmus,Tüüp,$W14,Aasta,AF$8) -> 34500 | AG14: =SUMIFS(Maksmus,Tüüp,$W14,Aasta,AG$8) -> 41860 | AH14: =SUMIFS(Maksmus,Tüüp,$W14,Aasta,AH$8) -> 52224 | AI14: =SUMIFS(Maksmus,Tüüp,$W14,Aasta,AI$8) -> 39285 | AJ14: =SUMIFS(Maksmus,Tüüp,$W14,Aasta,AJ$8) -> 33696 | AK14: =SUMIFS(Maksmus,Tüüp,$W14,Aasta,AK$8) -> 0 | AL14: =SUMIFS(Maksmus,Tüüp,$W14,Aasta,AL$8) -> 0 | AM14: 181350 | AN14: 2007
B15: 2007 | C15: Muusikalavastus | D15: 33 | E15: 11 | F15: 304 | G15: 34 | H15: 147.8 | I15: 110.2 | J15: 11.36 | L15: 2007 | M15: Muu lavastus - tsirkus | N15: .. | O15: .. | P15: .. | Q15: .. | R15: .. | S15: .. | T15: .. | U15: 0 | W15: Muu lavastus - tsirkus | X15: =SUMIFS(Maksmus,Tüüp,$W15,Aasta,X$8) -> 0 | Y15: =SUMIFS(Maksmus,Tüüp,$W15,Aasta,Y$8) -> 0 | Z15: =SUMIFS(Maksmus,Tüüp,$W15,Aasta,Z$8) -> 0 | AA15: =SUMIFS(Maksmus,Tüüp,$W15,Aasta,AA$8) -> 0 | AB15: =SUMIFS(Maksmus,Tüüp,$W15,Aasta,AB$8) -> 0 | AC15: =SUMIFS(Maksmus,Tüüp,$W15,Aasta,AC$8) -> 0 | AD15: =SUMIFS(Maksmus,Tüüp,$W15,Aasta,AD$8) -> 0 | AE15: =SUMIFS(Maksmus,Tüüp,$W15,Aasta,AE$8) -> 0 | AF15: =SUMIFS(Maksmus,Tüüp,$W15,Aasta,AF$8) -> 0 | AG15: =SUMIFS(Maksmus,Tüüp,$W15,Aasta,AG$8) -> 0 | AH15: =SUMIFS(Maksmus,Tüüp,$W15,Aasta,AH$8) -> 0 | AI15: =SUMIFS(Maksmus,Tüüp,$W15,Aasta,AI$8) -> 0 | AJ15: =SUMIFS(Maksmus,Tüüp,$W15,Aasta,AJ$8) -> 0 | AK15: =SUMIFS(Maksmus,Tüüp,$W15,Aasta,AK$8) -> 11836 | AL15: =SUMIFS(Maksmus,Tüüp,$W15,Aasta,AL$8) -> 0 | AM15: 11836 | AN15: 2020
B16: 2007 | C16: ..ooper | D16: 20 | E16: 8 | F16: 130 | G16: 11 | H16: 68.6 | I16: 51.1 | J16: 10.69 | L16: 2008 | M16: Sõnalavastus | N16: 224 | O16: 87 | P16: 2886 | Q16: 757 | R16: 555 | S16: 414 | T16: 8.99 | U16: 4989450
B17: 2007 | C17: ..operett | D17: 3 | E17: 0 | F17: 42 | G17: 7 | H17: 24 | I17: 17.9 | J17: 14.11 | L17: 2008 | M17: Muusikalavastus | N17: 29 | O17: 10 | P17: 272 | Q17: 18 | R17: 143.2 | S17: 106.8 | T17: 13.65 | U17: 1954680
B18: 2007 | C18: ..muusikal | D18: 5 | E18: 1 | F18: 76 | G18: 2 | H18: 40 | I18: 29.8 | J18: 8.5 | L18: 2008 | M18: Tantsulavastus | N18: 51 | O18: 20 | P18: 238 | Q18: 105 | R18: 45.6 | S18: 34 | T18: 9.28 | U18: 423168
B19: 2007 | C19: ..muu muusikalavastus | D19: 5 | E19: 2 | F19: 56 | G19: 14 | H19: 15.3 | I19: 11.4 | J19: 9.13 | L19: 2008 | M19: Nuku- ja objektiteatri lavastus | N19: . | O19: . | P19: . | Q19: . | R19: . | S19: . | T19: . | U19: 0
B20: 2007 | C20: Tantsulavastus | D20: 56 | E20: 27 | F20: 299 | G20: 100 | H20: 54.1 | I20: 40.3 | J20: 8.85 | L20: 2008 | M20: Mitmeliigilavastus | N20: . | O20: . | P20: . | Q20: . | R20: . | S20: . | T20: . | U20: 0
B21: 2007 | C21: ..klassikaline tants | D21: 9 | E21: 4 | F21: 71 | G21: 2 | H21: 34.1 | I21: 25.4 | J21: 5.36 | L21: 2008 | M21: Muu lavastus | N21: 14 | O21: 11 | P21: 85 | Q21: 20 | R21: 10 | S21: 7.5 | T21: 8.72 | U21: 87200
B22: 2007 | C22: ..nüüdistants | D22: 42 | E22: 21 | F22: 179 | G22: 88 | H22: 17.7 | I22: 13.2 | J22: 6.34 | L22: 2008 | M22: Muu lavastus - tsirkus | N22: .. | O22: .. | P22: .. | Q22: .. | R22: .. | S22: .. | T22: .. | U22: 0
B23: 2007 | C23: ..muu tantsulavastus | D23: 5 | E23: 2 | F23: 49 | G23: 10 | H23: 2.2 | I23: 1.7 | J23: 5.36 | L23: 2009 | M23: Sõnalavastus | N23: 219 | O23: 81 | P23: 2799 | Q23: 586 | R23: 482.8 | S23: 360.2 | T23: 8.72 | U23: 4210016
B24: 2007 | C24: Lastelavastus | D24: 86 | E24: 24 | F24: 1143 | G24: 418 | H24: 228.1 | I24: 170 | J24: 3.77 | L24: 2009 | M24: Muusikalavastus | N24: 38 | O24: 15 | P24: 308 | Q24: 12 | R24: 122.3 | S24: 91.2 | T24: 12.55 | U24: 1534865
B25: 2007 | C25: ..sõnalavastus lastele | D25: 39 | E25: 13 | F25: 484 | G25: 214 | H25: 88.6 | I25: 66 | J25: 5.36 | L25: 2009 | M25: Tantsulavastus | N25: 41 | O25: 17 | P25: 242 | Q25: 85 | R25: 46.7 | S25: 34.8 | T25: 8.58 | U25: 400686
B26: 2007 | C26: ..muusikalavastus lastele | D26: 6 | E26: 3 | F26: 35 | G26: 10 | H26: 11.3 | I26: 8.4 | J26: 8.16 | L26: 2009 | M26: Nuku- ja objektiteatri lavastus | N26: . | O26: . | P26: . | Q26: . | R26: . | S26: . | T26: . | U26: 0
B27: 2007 | C27: ..tantsulavastus lastele | D27: 5 | E27: 0 | F27: 183 | G27: 10 | H27: 20.4 | I27: 15.2 | J27: 3.35 | L27: 2009 | M27: Mitmeliigilavastus | N27: . | O27: . | P27: . | Q27: . | R27: . | S27: . | T27: . | U27: 0
B28: 2007 | C28: ..nukulavastus lastele | D28: 29 | E28: 5 | F28: 375 | G28: 135 | H28: 95.1 | I28: 70.9 | J28: 2.74 | L28: 2009 | M28: Muu lavastus | N28: 11 | O28: 8 | P28: 55 | Q28: 13 | R28: 4 | S28: 3 | T28: 9.29 | U28: 37160
B29: 2007 | C29: ..muu lastelavastus | D29: 7 | E29: 3 | F29: 66 | G29: 49 | H29: 12.7 | I29: 9.5 | J29: 4.68 | L29: 2009 | M29: Muu lavastus - tsirkus | N29: .. | O29: .. | P29: .. | Q29: .. | R29: .. | S29: .. | T29: .. | U29: 0
B30: 2007 | C30: Nuku- ja objektiteatri lavastus | D30: . | E30: . | F30: . | G30: . | H30: . | I30: . | J30: . | L30: 2010 | M30: Sõnalavastus | N30: 243 | O30: 99 | P30: 2730 | Q30: 540 | R30: 447.6 | S30: 334 | T30: 8.56 | U30: 3831456
B31: 2007 | C31: ..nukulavastus | D31: . | E31: . | F31: . | G31: . | H31: . | I31: . | J31: . | L31: 2010 | M31: Muusikalavastus | N31: 38 | O31: 11 | P31: 328 | Q31: 26 | R31: 160 | S31: 119.4 | T31: 12.45 | U31: 1992000
B32: 2007 | C32: ..objektiteatri lavastus | D32: . | E32: . | F32: . | G32: . | H32: . | I32: . | J32: . | L32: 2010 | M32: Tantsulavastus | N32: 41 | O32: 23 | P32: 212 | Q32: 69 | R32: 46.8 | S32: 34.9 | T32: 8.17 | U32: 382356
B33: 2007 | C33: ..nuku- ja objektiteatri lavastus | D33: . | E33: . | F33: . | G33: . | H33: . | I33: . | J33: . | L33: 2010 | M33: Nuku- ja objektiteatri lavastus | N33: . | O33: . | P33: . | Q33: . | R33: . | S33: . | T33: . | U33: 0
B34: 2007 | C34: Mitmeliigilavastus | D34: . | E34: . | F34: . | G34: . | H34: . | I34: . | J34: . | L34: 2010 | M34: Mitmeliigilavastus | N34: . | O34: . | P34: . | Q34: . | R34: . | S34: . | T34: . | U34: 0
B35: 2007 | C35: ..sõna-, muusika- ja liikumislavastus | D35: . | E35: . | F35: . | G35: . | H35: . | I35: . | J35: . | L35: 2010 | M35: Muu lavastus | N35: 11 | O35: 6 | P35: 47 | Q35: 16 | R35: 4.7 | S35: 3.5 | T35: 7.61 | U35: 35767
B36: 2007 | C36: ..muusika- ja liikumislavastus | D36: . | E36: . | F36: . | G36: . | H36: . | I36: . | J36: . | L36: 2010 | M36: Muu lavastus - tsirkus | N36: .. | O36: .. | P36: .. | Q36: .. | R36: .. | S36: .. | T36: .. | U36: 0
B37: 2007 | C37: ..muu | D37: .. | E37: .. | F37: .. | G37: .. | H37: .. | I37: .. | J37: .. | L37: 2011 | M37: Sõnalavastus | N37: 309 | O37: 117 | P37: 3527 | Q37: 845 | R37: 664.1 | S37: 495.6 | T37: 8.4 | U37: 5578440
B38: 2007 | C38: Muu lavastus | D38: 25 | E38: 18 | F38: 100 | G38: 55 | H38: 23.4 | I38: 17.4 | J38: 7.75 | L38: 2011 | M38: Muusikalavastus | N38: 52 | O38: 22 | P38: 434 | Q38: 42 | R38: 182.3 | S38: 136 | T38: 11.59 | U38: 2112857
B39: 2007 | C39: Muu lavastus - tsirkus | D39: .. | E39: .. | F39: .. | G39: .. | H39: .. | I39: .. | J39: .. | L39: 2011 | M39: Tantsulavastus | N39: 58 | O39: 30 | P39: 371 | Q39: 103 | R39: 94.1 | S39: 70.2 | T39: 8.82 | U39: 829962
A40: 2008 | B40: 2008 | C40: Kokku | D40: 400 | E40: 157 | F40: 4635 | G40: 1304 | H40: 983.1 | I40: 733.3 | J40: 8.83 | L40: 2011 | M40: Nuku- ja objektiteatri lavastus | N40: 33 | O40: 12 | P40: 541 | Q40: 210 | R40: 51.5 | S40: 38.4 | T40: 3.75 | U40: 193125
B41: 2008 | C41: Sõnalavastus | D41: 224 | E41: 87 | F41: 2886 | G41: 757 | H41: 555 | I41: 414 | J41: 8.99 | L41: 2011 | M41: Mitmeliigilavastus | N41: 9 | O41: 7 | P41: 118 | Q41: 61 | R41: 14.4 | S41: 10.7 | T41: 11.48 | U41: 165312
B42: 2008 | C42: ..draama | D42: 143 | E42: 56 | F42: 1721 | G42: 316 | H42: 300.5 | I42: 224.1 | J42: 9.46 | L42: 2011 | M42: Muu lavastus | N42: 3 | O42: 2 | P42: 21 | Q42: 2 | R42: 2 | S42: 1.5 | T42: 12.42 | U42: 24840
B43: 2008 | C43: ..komöödia | D43: 59 | E43: 21 | F43: 813 | G43: 351 | H43: 189.9 | I43: 141.6 | J43: 8.19 | L43: 2011 | M43: Muu lavastus - tsirkus | N43: .. | O43: .. | P43: .. | Q43: .. | R43: .. | S43: .. | T43: .. | U43: 0
B44: 2008 | C44: ..tragikomöödia | D44: 12 | E44: 4 | F44: 195 | G44: 72 | H44: 38.3 | I44: 28.5 | J44: 9.05 | L44: 2012 | M44: Sõnalavastus | N44: 317 | O44: 122 | P44: 3790 | Q44: 1002 | R44: 673.5 | S44: 521.9 | T44: 9.03 | U44: 6081705
B45: 2008 | C45: ..muu sõnalavastus | D45: 10 | E45: 6 | F45: 157 | G45: 18 | H45: 26.4 | I45: 19.7 | J45: 9.57 | L45: 2012 | M45: Muusikalavastus | N45: 42 | O45: 11 | P45: 420 | Q45: 44 | R45: 220.1 | S45: 170.5 | T45: 10.75 | U45: 2366075
B46: 2008 | C46: Muusikalavastus | D46: 29 | E46: 10 | F46: 272 | G46: 18 | H46: 143.2 | I46: 106.8 | J46: 13.65 | L46: 2012 | M46: Tantsulavastus | N46: 52 | O46: 29 | P46: 300 | Q46: 90 | R46: 91.6 | S46: 71 | T46: 9.3 | U46: 851880
B47: 2008 | C47: ..ooper | D47: 16 | E47: 4 | F47: 115 | G47: 2 | H47: 49 | I47: 36.6 | J47: 11.8 | L47: 2012 | M47: Nuku- ja objektiteatri lavastus | N47: 34 | O47: 8 | P47: 583 | Q47: 187 | R47: 68.2 | S47: 52.9 | T47: 4.47 | U47: 304854
B48: 2008 | C48: ..operett | D48: 4 | E48: 2 | F48: 59 | G48: 0 | H48: 37.5 | I48: 28 | J48: 15.49 | L48: 2012 | M48: Mitmeliigilavastus | N48: 40 | O48: 32 | P48: 495 | Q48: 127 | R48: 78.5 | S48: 60.8 | T48: 6.03 | U48: 473355
B49: 2008 | C49: ..muusikal | D49: 4 | E49: 1 | F49: 44 | G49: 4 | H49: 22.4 | I49: 16.7 | J49: 11.34 | L49: 2012 | M49: Muu lavastus | N49: 2 | O49: 1 | P49: 90 | Q49: 83 | R49: 12.4 | S49: 29.2 | T49: .. | U49: 0
B50: 2008 | C50: ..muu muusikalavastus | D50: 5 | E50: 3 | F50: 54 | G50: 12 | H50: 34.3 | I50: 25.6 | J50: 15.72 | L50: 2012 | M50: Muu lavastus - tsirkus | N50: .. | O50: .. | P50: .. | Q50: .. | R50: .. | S50: .. | T50: .. | U50: 0
B51: 2008 | C51: Tantsulavastus | D51: 51 | E51: 20 | F51: 238 | G51: 105 | H51: 45.6 | I51: 34 | J51: 9.28 | L51: 2013 | M51: Sõnalavastus | N51: 310 | O51: 117 | P51: 3828 | Q51: 1039 | R51: 643.4 | S51: 488.1 | T51: 9.45 | U51: 6080130
B52: 2008 | C52: ..klassikaline tants | D52: 9 | E52: 1 | F52: 59 | G52: 3 | H52: 26.6 | I52: 19.9 | J52: 9.9 | L52: 2013 | M52: Muusikalavastus | N52: 39 | O52: 11 | P52: 393 | Q52: 42 | R52: 213.9 | S52: 162.3 | T52: 11.85 | U52: 2534715
B53: 2008 | C53: ..nüüdistants | D53: 35 | E53: 16 | F53: 153 | G53: 81 | H53: 16.1 | I53: 12 | J53: 6.66 | L53: 2013 | M53: Tantsulavastus | N53: 58 | O53: 26 | P53: 327 | Q53: 98 | R53: 88.9 | S53: 67.4 | T53: 9.85 | U53: 875665
B54: 2008 | C54: ..muu tantsulavastus | D54: 7 | E54: 3 | F54: 26 | G54: 21 | H54: 2.9 | I54: 2.2 | J54: 6.11 | L54: 2013 | M54: Nuku- ja objektiteatri lavastus | N54: 34 | O54: 9 | P54: 642 | Q54: 289 | R54: 55 | S54: 41.8 | T54: 4.41 | U54: 242550
B55: 2008 | C55: Lastelavastus | D55: 82 | E55: 29 | F55: 1154 | G55: 404 | H55: 229.3 | I55: 171 | J55: 5.24 | L55: 2013 | M55: Mitmeliigilavastus | N55: 53 | O55: 29 | P55: 476 | Q55: 133 | R55: 71.8 | S55: 54.5 | T55: 9.19 | U55: 659842
B56: 2008 | C56: ..sõnalavastus lastele | D56: 35 | E56: 13 | F56: 437 | G56: 162 | H56: 101.2 | I56: 75.5 | J56: 4.77 | L56: 2013 | M56: Muu lavastus | N56: 2 | O56: 0 | P56: 146 | Q56: 87 | R56: 17.7 | S56: 13.4 | T56: .. | U56: 0
B57: 2008 | C57: ..muusikalavastus lastele | D57: 6 | E57: 3 | F57: 93 | G57: 8 | H57: 37.2 | I57: 27.8 | J57: 6.27 | L57: 2013 | M57: Muu lavastus - tsirkus | N57: .. | O57: .. | P57: .. | Q57: .. | R57: .. | S57: .. | T57: .. | U57: 0
B58: 2008 | C58: ..tantsulavastus lastele | D58: 7 | E58: 3 | F58: 66 | G58: 12 | H58: 30.2 | I58: 22.6 | J58: 7.81 | L58: 2014 | M58: Sõnalavastus | N58: 320 | O58: 119 | P58: 4068 | Q58: 1183 | R58: 661.8 | S58: 503.4 | T58: 9.91 | U58: 6558438
B59: 2008 | C59: ..nukulavastus lastele | D59: 25 | E59: 5 | F59: 479 | G59: 177 | H59: 53.2 | I59: 39.7 | J59: 3.98 | L59: 2014 | M59: Muusikalavastus | N59: 35 | O59: 6 | P59: 308 | Q59: 58 | R59: 169.6 | S59: 129 | T59: 13.54 | U59: 2296384
B60: 2008 | C60: ..muu lastelavastus | D60: 9 | E60: 5 | F60: 79 | G60: 45 | H60: 7.3 | I60: 5.5 | J60: 3.13 | L60: 2014 | M60: Tantsulavastus | N60: 54 | O60: 20 | P60: 296 | Q60: 106 | R60: 74.8 | S60: 56.9 | T60: 10.64 | U60: 795872
B61: 2008 | C61: Nuku- ja objektiteatri lavastus | D61: . | E61: . | F61: . | G61: . | H61: . | I61: . | J61: . | L61: 2014 | M61: Nuku- ja objektiteatri lavastus | N61: 39 | O61: 12 | P61: 682 | Q61: 243 | R61: 65.2 | S61: 49.6 | T61: 4.92 | U61: 320784
B62: 2008 | C62: ..nukulavastus | D62: . | E62: . | F62: . | G62: . | H62: . | I62: . | J62: . | L62: 2014 | M62: Mitmeliigilavastus | N62: 60 | O62: 37 | P62: 518 | Q62: 137 | R62: 60.3 | S62: 45.8 | T62: 8.44 | U62: 508932
B63: 2008 | C63: ..objektiteatri lavastus | D63: . | E63: . | F63: . | G63: . | H63: . | I63: . | J63: . | L63: 2014 | M63: Muu lavastus | N63: 3 | O63: 2 | P63: 138 | Q63: 102 | R63: 15.5 | S63: 11.8 | T63: 9.6 | U63: 148800
B64: 2008 | C64: ..nuku- ja objektiteatri lavastus | D64: . | E64: . | F64: . | G64: . | H64: . | I64: . | J64: . | L64: 2014 | M64: Muu lavastus - tsirkus | N64: .. | O64: .. | P64: .. | Q64: .. | R64: .. | S64: .. | T64: .. | U64: 0
B65: 2008 | C65: Mitmeliigilavastus | D65: . | E65: . | F65: . | G65: . | H65: . | I65: . | J65: . | L65: 2015 | M65: Sõnalavastus | N65: 348 | O65: 140 | P65: 4262 | Q65: 1250 | R65: 677.9 | S65: 515.7 | T65: 10.43 | U65: 7070497
B66: 2008 | C66: ..sõna-, muusika- ja liikumislavastus | D66: . | E66: . | F66: . | G66: . | H66: . | I66: . | J66: . | L66: 2015 | M66: Muusikalavastus | N66: 42 | O66: 13 | P66: 334 | Q66: 46 | R66: 181.5 | S66: 138.1 | T66: 13.14 | U66: 2384910
B67: 2008 | C67: ..muusika- ja liikumislavastus | D67: . | E67: . | F67: . | G67: . | H67: . | I67: . | J67: . | L67: 2015 | M67: Tantsulavastus | N67: 52 | O67: 25 | P67: 365 | Q67: 129 | R67: 98.4 | S67: 74.9 | T67: 12.18 | U67: 1198512
B68: 2008 | C68: ..muu | D68: .. | E68: .. | F68: .. | G68: .. | H68: .. | I68: .. | J68: .. | L68: 2015 | M68: Nuku- ja objektiteatri lavastus | N68: 41 | O68: 8 | P68: 742 | Q68: 484 | R68: 63.8 | S68: 48.5 | T68: 4.57 | U68: 291566
B69: 2008 | C69: Muu lavastus | D69: 14 | E69: 11 | F69: 85 | G69: 20 | H69: 10 | I69: 7.5 | J69: 8.72 | L69: 2015 | M69: Mitmeliigilavastus | N69: 66 | O69: 30 | P69: 655 | Q69: 284 | R69: 113.6 | S69: 86.4 | T69: 10.67 | U69: 1212112
B70: 2008 | C70: Muu lavastus - tsirkus | D70: .. | E70: .. | F70: .. | G70: .. | H70: .. | I70: .. | J70: .. | L70: 2015 | M70: Muu lavastus | N70: 1 | O70: 0 | P70: 76 | Q70: 63 | R70: 11.5 | S70: 8.7 | T70: 3 | U70: 34500
A71: 2009 | B71: 2009 | C71: Kokku | D71: 401 | E71: 153 | F71: 4731 | G71: 1125 | H71: 873.8 | I71: 652 | J71: 8.42 | L71: 2015 | M71: Muu lavastus - tsirkus | N71: .. | O71: .. | P71: .. | Q71: .. | R71: .. | S71: .. | T71: .. | U71: 0
B72: 2009 | C72: Sõnalavastus | D72: 219 | E72: 81 | F72: 2799 | G72: 586 | H72: 482.8 | I72: 360.2 | J72: 8.72 | L72: 2016 | M72: Sõnalavastus | N72: 347 | O72: 124 | P72: 4413 | Q72: 1526 | R72: 717 | S72: 544.9 | T72: 10.82 | U72: 7757940
B73: 2009 | C73: ..draama | D73: 140 | E73: 58 | F73: 1717 | G73: 197 | H73: 263.7 | I73: 196.7 | J73: 9.23 | L73: 2016 | M73: Muusikalavastus | N73: 38 | O73: 8 | P73: 363 | Q73: 41 | R73: 198.9 | S73: 151.2 | T73: 16.44 | U73: 3269916
B74: =IF(A74="",B73,A74) -> 2009 | C74: ..komöödia | D74: 61 | E74: 19 | F74: 869 | G74: 326 | H74: 183.5 | I74: 136.9 | J74: 8.09 | L74: 2016 | M74: Tantsulavastus | N74: 47 | O74: 20 | P74: 329 | Q74: 95 | R74: 92.8 | S74: 70.5 | T74: 12.67 | U74: =IFERROR(T74*R74*1000,0) -> 1175776
B75: 2009 | C75: ..tragikomöödia | D75: 10 | E75: 2 | F75: 115 | G75: 37 | H75: 16.5 | I75: 12.3 | J75: 7.85 | L75: 2016 | M75: Nuku- ja objektiteatri lavastus | N75: 43 | O75: 9 | P75: 669 | Q75: 563 | R75: 61.5 | S75: 46.7 | T75: 4.44 | U75: 273060
B76: 2009 | C76: ..muu sõnalavastus | D76: 8 | E76: 2 | F76: 98 | G76: 26 | H76: 19.1 | I76: 14.2 | J76: 8.69 | L76: 2016 | M76: Mitmeliigilavastus | N76: 64 | O76: 35 | P76: 711 | Q76: 247 | R76: 104.4 | S76: 79.3 | T76: 9.58 | U76: 1000152
B77: 2009 | C77: Muusikalavastus | D77: 38 | E77: 15 | F77: 308 | G77: 12 | H77: 122.3 | I77: 91.2 | J77: 12.55 | L77: 2016 | M77: Muu lavastus | N77: 1 | O77: 0 | P77: 88 | Q77: 72 | R77: 11.5 | S77: 8.7 | T77: 3.64 | U77: 41860
B78: 2009 | C78: ..ooper | D78: 20 | E78: 6 | F78: 119 | G78: 2 | H78: 42.1 | I78: 31.4 | J78: 10.54 | L78: 2016 | M78: Muu lavastus - tsirkus | N78: .. | O78: .. | P78: .. | Q78: .. | R78: .. | S78: .. | T78: .. | U78: 0
B79: 2009 | C79: ..operett | D79: 3 | E79: 0 | F79: 56 | G79: 0 | H79: 29 | I79: 21.7 | J79: 15.33 | L79: 2017 | M79: Sõnalavastus | N79: 337 | O79: 118 | P79: 4380 | Q79: 1443 | R79: 691.8 | S79: 525.2 | T79: 11.38 | U79: 7872684
B80: 2009 | C80: ..muusikal | D80: 4 | E80: 2 | F80: 29 | G80: 0 | H80: 23.8 | I80: 17.7 | J80: 16 | L80: 2017 | M80: Muusikalavastus | N80: 45 | O80: 10 | P80: 307 | Q80: 41 | R80: 171.2 | S80: 130 | T80: 15.43 | U80: 2641616
B81: 2009 | C81: ..muu muusikalavastus | D81: 11 | E81: 7 | F81: 104 | G81: 10 | H81: 27.4 | I81: 20.4 | J81: 9.4 | L81: 2017 | M81: Tantsulavastus | N81: 60 | O81: 28 | P81: 388 | Q81: 117 | R81: 100.2 | S81: 76.1 | T81: 13.28 | U81: 1330656
B82: 2009 | C82: Tantsulavastus | D82: 41 | E82: 17 | F82: 242 | G82: 85 | H82: 46.7 | I82: 34.8 | J82: 8.58 | L82: 2017 | M82: Nuku- ja objektiteatri lavastus | N82: 38 | O82: 4 | P82: 641 | Q82: 350 | R82: 58 | S82: 44 | T82: 5.04 | U82: 292320
B83: 2009 | C83: ..klassikaline tants | D83: 10 | E83: 3 | F83: 67 | G83: 2 | H83: 29.6 | I83: 22.1 | J83: 9.02 | L83: 2017 | M83: Mitmeliigilavastus | N83: 77 | O83: 43 | P83: 910 | Q83: 199 | R83: 129.8 | S83: 98.6 | T83: 9.18 | U83: 1191564
B84: 2009 | C84: ..nüüdistants | D84: 27 | E84: 13 | F84: 157 | G84: 74 | H84: 14.8 | I84: 11 | J84: 6.15 | L84: 2017 | M84: Muu lavastus | N84: 2 | O84: 1 | P84: 87 | Q84: 74 | R84: 12.8 | S84: 9.8 | T84: 4.08 | U84: 52224
B85: 2009 | C85: ..muu tantsulavastus | D85: 4 | E85: 1 | F85: 18 | G85: 9 | H85: 2.3 | I85: 1.7 | J85: 8.81 | L85: 2017 | M85: Muu lavastus - tsirkus | N85: .. | O85: .. | P85: .. | Q85: .. | R85: .. | S85: .. | T85: .. | U85: 0
B86: 2009 | C86: Lastelavastus | D86: 92 | E86: 32 | F86: 1327 | G86: 429 | H86: 218 | I86: 162.7 | J86: 5.39 | L86: 2018 | M86: Sõnalavastus | N86: 365 | O86: 136 | P86: 4375 | Q86: 1231 | R86: 697 | S86: 527.2 | T86: 12 | U86: 8364000
B87: 2009 | C87: ..sõnalavastus lastele | D87: 32 | E87: 16 | F87: 417 | G87: 106 | H87: 99.6 | I87: 74.3 | J87: 5.18 | L87: 2018 | M87: Muusikalavastus | N87: 48 | O87: 12 | P87: 362 | Q87: 42 | R87: 194.5 | S87: 147.1 | T87: 17.45 | U87: 3394025
B88: 2009 | C88: ..muusikalavastus lastele | D88: 5 | E88: 1 | F88: 96 | G88: 15 | H88: 37.9 | I88: 28.3 | J88: 8.08 | L88: 2018 | M88: Tantsulavastus | N88: 60 | O88: 26 | P88: 350 | Q88: 114 | R88: 98.8 | S88: 74.7 | T88: 14.14 | U88: 1397032
B89: 2009 | C89: ..tantsulavastus lastele | D89: 6 | E89: 1 | F89: 51 | G89: 6 | H89: 19.3 | I89: 14.4 | J89: 7.05 | L89: 2018 | M89: Nuku- ja objektiteatri lavastus | N89: 34 | O89: 7 | P89: 597 | Q89: 340 | R89: 55.3 | S89: 41.8 | T89: 6.12 | U89: 338436
B90: 2009 | C90: ..nukulavastus lastele | D90: 40 | E90: 7 | F90: 683 | G90: 237 | H90: 50 | I90: 37.3 | J90: 3.44 | L90: 2018 | M90: Mitmeliigilavastus | N90: 74 | O90: 30 | P90: 949 | Q90: 249 | R90: 133 | S90: 100.6 | T90: 10.43 | U90: 1387190
B91: 2009 | C91: ..muu lastelavastus | D91: 9 | E91: 7 | F91: 80 | G91: 65 | H91: 11.2 | I91: 8.4 | J91: 2.84 | L91: 2018 | M91: Muu lavastus | N91: 1 | O91: 0 | P91: 62 | Q91: 52 | R91: 13.5 | S91: 10.2 | T91: 2.91 | U91: 39285
B92: 2009 | C92: Nuku- ja objektiteatri lavastus | D92: . | E92: . | F92: . | G92: . | H92: . | I92: . | J92: . | L92: 2018 | M92: Muu lavastus - tsirkus | N92: .. | O92: .. | P92: .. | Q92: .. | R92: .. | S92: .. | T92: .. | U92: 0
B93: 2009 | C93: ..nukulavastus | D93: . | E93: . | F93: . | G93: . | H93: . | I93: . | J93: . | L93: 2019 | M93: Sõnalavastus | N93: 390 | O93: 134 | P93: 4931 | Q93: 1692 | R93: 796.1 | S93: 599.9 | T93: 12.66 | U93: 10078626
B94: 2009 | C94: ..objektiteatri lavastus | D94: . | E94: . | F94: . | G94: . | H94: . | I94: . | J94: . | L94: 2019 | M94: Muusikalavastus | N94: 46 | O94: 10 | P94: 351 | Q94: 48 | R94: 181.4 | S94: 136.7 | T94: 18.75 | U94: 3401250
B95: 2009 | C95: ..nuku- ja objektiteatri lavastus | D95: . | E95: . | F95: . | G95: . | H95: . | I95: . | J95: . | L95: 2019 | M95: Tantsulavastus | N95: 60 | O95: 25 | P95: 391 | Q95: 110 | R95: 101 | S95: 76.1 | T95: 14.31 | U95: 1445310
B96: 2009 | C96: Mitmeliigilavastus | D96: . | E96: . | F96: . | G96: . | H96: . | I96: . | J96: . | L96: 2019 | M96: Nuku- ja objektiteatri lavastus | N96: 37 | O96: 8 | P96: 522 | Q96: 280 | R96: 45.7 | S96: 34.4 | T96: 6.3 | U96: 287910
B97: 2009 | C97: ..sõna-, muusika- ja liikumislavastus | D97: . | E97: . | F97: . | G97: . | H97: . | I97: . | J97: . | L97: 2019 | M97: Mitmeliigilavastus | N97: 76 | O97: 45 | P97: 801 | Q97: 171 | R97: 138.3 | S97: 104.3 | T97: 12.45 | U97: 1721835
B98: 2009 | C98: ..muusika- ja liikumislavastus | D98: . | E98: . | F98: . | G98: . | H98: . | I98: . | J98: . | L98: 2019 | M98: Muu lavastus | N98: 1 | O98: 0 | P98: 51 | Q98: 44 | R98: 10.8 | S98: 8.2 | T98: 3.12 | U98: 33696
B99: 2009 | C99: ..muu | D99: .. | E99: .. | F99: .. | G99: .. | H99: .. | I99: .. | J99: .. | L99: 2019 | M99: Muu lavastus - tsirkus | N99: .. | O99: .. | P99: .. | Q99: .. | R99: .. | S99: .. | T99: .. | U99: 0
B100: 2009 | C100: Muu lavastus | D100: 11 | E100: 8 | F100: 55 | G100: 13 | H100: 4 | I100: 3 | J100: 9.29 | L100: 2020 | M100: Sõnalavastus | N100: 359 | O100: 105 | P100: 3505 | Q100: 1044 | R100: 487 | S100: 366.3 | T100: 13.17 | U100: 6413790
B101: 2009 | C101: Muu lavastus - tsirkus | D101: .. | E101: .. | F101: .. | G101: .. | H101: .. | I101: .. | J101: .. | L101: 2020 | M101: Muusikalavastus | N101: 44 | O101: 12 | P101: 282 | Q101: 54 | R101: 93 | S101: 69.9 | T101: 17.25 | U101: 1604250
A102: 2010 | B102: 2010 | C102: Kokku | D102: 417 | E102: 173 | F102: 4593 | G102: 1158 | H102: 899.9 | I102: 671.5 | J102: 8.06 | L102: 2020 | M102: Tantsulavastus | N102: 41 | O102: 17 | P102: 241 | Q102: 57 | R102: 52.9 | S102: 39.8 | T102: 14.48 | U102: 765992
B103: 2010 | C103: Sõnalavastus | D103: 243 | E103: 99 | F103: 2730 | G103: 540 | H103: 447.6 | I103: 334 | J103: 8.56 | L103: 2020 | M103: Nuku- ja objektiteatri lavastus | N103: 29 | O103: 3 | P103: 248 | Q103: 113 | R103: 17.9 | S103: 13.5 | T103: 5.82 | U103: 104178
B104: 2010 | C104: ..draama | D104: 157 | E104: 67 | F104: 1765 | G104: 237 | H104: 241.2 | I104: 180 | J104: 8.8 | L104: 2020 | M104: Mitmeliigilavastus | N104: 65 | O104: 29 | P104: 483 | Q104: 151 | R104: 74.4 | S104: 55.9 | T104: 17.49 | U104: 1301256
B105: 2010 | C105: ..komöödia | D105: 63 | E105: 22 | F105: 780 | G105: 247 | H105: 175.6 | I105: 131 | J105: 8.33 | L105: 2020 | M105: Muu lavastus | N105: .. | O105: .. | P105: .. | Q105: .. | R105: .. | S105: .. | T105: .. | U105: 0
B106: 2010 | C106: ..tragikomöödia | D106: 10 | E106: 3 | F106: 68 | G106: 18 | H106: 16.9 | I106: 12.6 | J106: 8.28 | L106: 2020 | M106: Muu lavastus - tsirkus | N106: 1 | O106: 0 | P106: 26 | Q106: 21 | R106: 2.2 | S106: 1.6 | T106: 5.38 | U106: 11836
B107: 2010 | C107: ..muu sõnalavastus | D107: 13 | E107: 7 | F107: 117 | G107: 38 | H107: 13.9 | I107: 10.4 | J107: 7.94 | L107: 2021 | M107: Sõnalavastus | N107: 382 | O107: 140 | P107: 3609 | Q107: 938 | R107: 482.1 | S107: 362.3 | T107: 14.75 | U107: 7110975
B108: 2010 | C108: Muusikalavastus | D108: 38 | E108: 11 | F108: 328 | G108: 26 | H108: 160 | I108: 119.4 | J108: 12.45 | L108: 2021 | M108: Muusikalavastus | N108: 43 | O108: 14 | P108: 217 | Q108: 25 | R108: 61.4 | S108: 46.2 | T108: 17.85 | U108: 1095990
B109: 2010 | C109: ..ooper | D109: 16 | E109: 3 | F109: 93 | G109: 5 | H109: 37.5 | I109: 28 | J109: 11.04 | L109: 2021 | M109: Tantsulavastus | N109: 58 | O109: 29 | P109: 303 | Q109: 40 | R109: 47.6 | S109: 35.8 | T109: 15.23 | U109: 724948
B110: 2010 | C110: ..operett | D110: 6 | E110: 3 | F110: 72 | G110: 4 | H110: 36.9 | I110: 27.5 | J110: 14.49 | L110: 2021 | M110: Nuku- ja objektiteatri lavastus | N110: 31 | O110: 5 | P110: 221 | Q110: 92 | R110: 10.8 | S110: 8.1 | T110: 5.95 | U110: 64260
B111: 2010 | C111: ..muusikal | D111: 7 | E111: 3 | F111: 112 | G111: 9 | H111: 66.9 | I111: 49.9 | J111: 12.28 | L111: 2021 | M111: Mitmeliigilavastus | N111: 56 | O111: 23 | P111: 417 | Q111: 118 | R111: 46.5 | S111: 34.9 | T111: 17.42 | U111: 810030
B112: 2010 | C112: ..muu muusikalavastus | D112: 9 | E112: 2 | F112: 51 | G112: 8 | H112: 18.6 | I112: 13.9 | J112: 11.02 | L112: 2021 | M112: Muu lavastus | N112: .. | O112: .. | P112: .. | Q112: .. | R112: .. | S112: .. | T112: .. | U112: 0
B113: 2010 | C113: Tantsulavastus | D113: 41 | E113: 23 | F113: 212 | G113: 69 | H113: 46.8 | I113: 34.9 | J113: 8.17 | L113: 2021 | M113: Muu lavastus - tsirkus | N113: 1 | O113: 0 | P113: 23 | Q113: .. | R113: 2.6 | S113: 2 | T113: .. | U113: 0
B114: 2010 | C114: ..klassikaline tants | D114: 10 | E114: 3 | F114: 76 | G114: 5 | H114: 29.3 | I114: 21.8 | J114: 8.57
B115: 2010 | C115: ..nüüdistants | D115: 30 | E115: 20 | F115: 134 | G115: 62 | H115: 17.2 | I115: 12.8 | J115: 4.76
B116: 2010 | C116: ..muu tantsulavastus | D116: 1 | E116: 0 | F116: 2 | G116: 2 | H116: 0.3 | I116: 0.2 | J116: 0
B117: 2010 | C117: Lastelavastus | D117: 84 | E117: 34 | F117: 1276 | G117: 507 | H117: 240.9 | I117: 179.7 | J117: 5.25
B118: 2010 | C118: ..sõnalavastus lastele | D118: 42 | E118: 20 | F118: 554 | G118: 144 | H118: 122.1 | I118: 91.1 | J118: 5.04
B119: 2010 | C119: ..muusikalavastus lastele | D119: 5 | E119: 3 | F119: 103 | G119: 23 | H119: 41.4 | I119: 30.9 | J119: 8.35
B120: 2010 | C120: ..tantsulavastus lastele | D120: 8 | E120: 4 | F120: 67 | G120: 7 | H120: 22 | I120: 16.4 | J120: 6.93
B121: 2010 | C121: ..nukulavastus lastele | D121: 23 | E121: 4 | F121: 405 | G121: 208 | H121: 42 | I121: 31.3 | J121: 2.7
B122: 2010 | C122: ..muu lastelavastus | D122: 6 | E122: 3 | F122: 147 | G122: 125 | H122: 13.4 | I122: 10 | J122: 2.02
B123: 2010 | C123: Nuku- ja objektiteatri lavastus | D123: . | E123: . | F123: . | G123: . | H123: . | I123: . | J123: .
B124: 2010 | C124: ..nukulavastus | D124: . | E124: . | F124: . | G124: . | H124: . | I124: . | J124: .
B125: 2010 | C125: ..objektiteatri lavastus | D125: . | E125: . | F125: . | G125: . | H125: . | I125: . | J125: .
B126: 2010 | C126: ..nuku- ja objektiteatri lavastus | D126: . | E126: . | F126: . | G126: . | H126: . | I126: . | J126: .
B127: 2010 | C127: Mitmeliigilavastus | D127: . | E127: . | F127: . | G127: . | H127: . | I127: . | J127: .
B128: 2010 | C128: ..sõna-, muusika- ja liikumislavastus | D128: . | E128: . | F128: . | G128: . | H128: . | I128: . | J128: .
B129: 2010 | C129: ..muusika- ja liikumislavastus | D129: . | E129: . | F129: . | G129: . | H129: . | I129: . | J129: .
B130: 2010 | C130: ..muu | D130: .. | E130: .. | F130: .. | G130: .. | H130: .. | I130: .. | J130: ..
B131: 2010 | C131: Muu lavastus | D131: 11 | E131: 6 | F131: 47 | G131: 16 | H131: 4.7 | I131: 3.5 | J131: 7.61
B132: 2010 | C132: Muu lavastus - tsirkus | D132: .. | E132: .. | F132: .. | G132: .. | H132: .. | I132: .. | J132: ..
A133: 2011 | B133: 2011 | C133: Kokku | D133: 464 | E133: 190 | F133: 5012 | G133: 1263 | H133: 1008.3 | I133: 752.5 | J133: 8.77
B134: 2011 | C134: Sõnalavastus | D134: 309 | E134: 117 | F134: 3527 | G134: 845 | H134: 664.1 | I134: 495.6 | J134: 8.4
B135: 2011 | C135: ..draama | D135: 219 | E135: 87 | F135: 2410 | G135: 443 | H135: 412.3 | I135: 307.7 | J135: 8.37
B136: 2011 | C136: ..komöödia | D136: 71 | E136: 22 | F136: 931 | G136: 360 | H136: 218.6 | I136: 163.1 | J136: 8.58
B137: 2011 | C137: ..tragikomöödia | D137: 15 | E137: 8 | F137: 162 | G137: 41 | H137: 32.3 | I137: 24.1 | J137: 7.46
B138: =IF(A138="",B137,A138) -> 2011 | C138: ..muu sõnalavastus | D138: 4 | E138: 0 | F138: 24 | G138: 1 | H138: 1 | I138: 0.7 | J138: 7.11
B139: 2011 | C139: Muusikalavastus | D139: 52 | E139: 22 | F139: 434 | G139: 42 | H139: 182.3 | I139: 136 | J139: 11.59
B140: 2011 | C140: ..ooper | D140: 22 | E140: 9 | F140: 125 | G140: 13 | H140: 49.9 | I140: 37.2 | J140: 12.68
B141: 2011 | C141: ..operett | D141: 5 | E141: 1 | F141: 59 | G141: 4 | H141: 36.2 | I141: 27 | J141: 13.91
B142: 2011 | C142: ..muusikal | D142: 16 | E142: 7 | F142: 215 | G142: 17 | H142: 89.3 | I142: 66.7 | J142: 9.15
B143: 2011 | C143: ..muu muusikalavastus | D143: 9 | E143: 5 | F143: 35 | G143: 8 | H143: 6.9 | I143: 5.1 | J143: 8.74
B144: 2011 | C144: Tantsulavastus | D144: 58 | E144: 30 | F144: 371 | G144: 103 | H144: 94.1 | I144: 70.2 | J144: 8.82
B145: 2011 | C145: ..klassikaline tants | D145: 17 | E145: 6 | F145: 112 | G145: 8 | H145: 54.7 | I145: 40.8 | J145: 9.2
B146: 2011 | C146: ..nüüdistants | D146: 40 | E146: 23 | F146: 255 | G146: 95 | H146: 38.9 | I146: 29.1 | J146: 5.47
B147: 2011 | C147: ..muu tantsulavastus | D147: 1 | E147: 1 | F147: 4 | G147: 0 | H147: 0.4 | I147: 0.3 | J147: 0
B148: 2011 | C148: Lastelavastus | D148: . | E148: . | F148: . | G148: . | H148: . | I148: . | J148: .
B149: 2011 | C149: ..sõnalavastus lastele | D149: . | E149: . | F149: . | G149: . | H149: . | I149: . | J149: .
B150: 2011 | C150: ..muusikalavastus lastele | D150: . | E150: . | F150: . | G150: . | H150: . | I150: . | J150: .
B151: 2011 | C151: ..tantsulavastus lastele | D151: . | E151: . | F151: . | G151: . | H151: . | I151: . | J151: .
B152: 2011 | C152: ..nukulavastus lastele | D152: . | E152: . | F152: . | G152: . | H152: . | I152: . | J152: .
B153: 2011 | C153: ..muu lastelavastus | D153: . | E153: . | F153: . | G153: . | H153: . | I153: . | J153: .
B154: 2011 | C154: Nuku- ja objektiteatri lavastus | D154: 33 | E154: 12 | F154: 541 | G154: 210 | H154: 51.5 | I154: 38.4 | J154: 3.75
B155: 2011 | C155: ..nukulavastus | D155: 26 | E155: 7 | F155: 436 | G155: 204 | H155: 44.1 | I155: 32.9 | J155: 3.58
B156: 2011 | C156: ..objektiteatri lavastus | D156: 3 | E156: 2 | F156: 25 | G156: 0 | H156: 0.7 | I156: 0.5 | J156: 0
B157: 2011 | C157: ..nuku- ja objektiteatri lavastus | D157: 4 | E157: 3 | F157: 80 | G157: 6 | H157: 6.7 | I157: 5 | J157: 4.57
B158: 2011 | C158: Mitmeliigilavastus | D158: 9 | E158: 7 | F158: 118 | G158: 61 | H158: 14.4 | I158: 10.7 | J158: 11.48
B159: 2011 | C159: ..sõna-, muusika- ja liikumislavastus | D159: 8 | E159: 6 | F159: 108 | G159: 61 | H159: 13.9 | I159: 10.4 | J159: 11.67
B160: 2011 | C160: ..muusika- ja liikumislavastus | D160: 1 | E160: 1 | F160: 10 | G160: 0 | H160: 0.4 | I160: 0.3 | J160: 7.44
B161: 2011 | C161: ..muu | D161: .. | E161: .. | F161: .. | G161: .. | H161: .. | I161: .. | J161: ..
B162: 2011 | C162: Muu lavastus | D162: 3 | E162: 2 | F162: 21 | G162: 2 | H162: 2 | I162: 1.5 | J162: 12.42
B163: 2011 | C163: Muu lavastus - tsirkus | D163: .. | E163: .. | F163: .. | G163: .. | H163: .. | I163: .. | J163: ..
A164: 2012 | B164: 2012 | C164: Kokku | D164: 487 | E164: 203 | F164: 5678 | G164: 1533 | H164: 1143 | I164: 885.7 | J164: 10.13
B165: 2012 | C165: Sõnalavastus | D165: 317 | E165: 122 | F165: 3790 | G165: 1002 | H165: 673.5 | I165: 521.9 | J165: 9.03
B166: 2012 | C166: ..draama | D166: 221 | E166: 90 | F166: 2637 | G166: .. | H166: 415.8 | I166: 322.2 | J166: ..
B167: 2012 | C167: ..komöödia | D167: 73 | E167: 25 | F167: 973 | G167: .. | H167: 233.3 | I167: 180.8 | J167: ..
B168: 2012 | C168: ..tragikomöödia | D168: 19 | E168: 6 | F168: 154 | G168: .. | H168: 23.3 | I168: 18.1 | J168: ..
B169: 2012 | C169: ..muu sõnalavastus | D169: 4 | E169: 1 | F169: 26 | G169: .. | H169: 1.2 | I169: 0.9 | J169: ..
B170: 2012 | C170: Muusikalavastus | D170: 42 | E170: 11 | F170: 420 | G170: 44 | H170: 220.1 | I170: 170.5 | J170: 10.75
B171: 2012 | C171: ..ooper | D171: 18 | E171: 3 | F171: 97 | G171: .. | H171: 44.2 | I171: 34.2 | J171: ..
B172: 2012 | C172: ..operett | D172: 4 | E172: 0 | F172: 38 | G172: .. | H172: 21.2 | I172: 16.4 | J172: ..
B173: 2012 | C173: ..muusikal | D173: 13 | E173: 6 | F173: 239 | G173: .. | H173: 134 | I173: 103.9 | J173: ..
B174: 2012 | C174: ..muu muusikalavastus | D174: 7 | E174: 2 | F174: 46 | G174: .. | H174: 20.7 | I174: 16 | J174: ..
B175: 2012 | C175: Tantsulavastus | D175: 52 | E175: 29 | F175: 300 | G175: 90 | H175: 91.6 | I175: 71 | J175: 9.3
B176: 2012 | C176: ..klassikaline tants | D176: 14 | E176: 3 | F176: 118 | G176: .. | H176: 69.7 | I176: 54 | J176: ..
B177: 2012 | C177: ..nüüdistants | D177: 35 | E177: 24 | F177: 173 | G177: .. | H177: 16.8 | I177: 13 | J177: ..
B178: 2012 | C178: ..muu tantsulavastus | D178: 3 | E178: 2 | F178: 9 | G178: .. | H178: 5.1 | I178: 4 | J178: ..
B179: 2012 | C179: Lastelavastus | D179: . | E179: . | F179: . | G179: . | H179: . | I179: . | J179: .
B180: 2012 | C180: ..sõnalavastus lastele | D180: . | E180: . | F180: . | G180: . | H180: . | I180: . | J180: .
B181: 2012 | C181: ..muusikalavastus lastele | D181: . | E181: . | F181: . | G181: . | H181: . | I181: . | J181: .
B182: 2012 | C182: ..tantsulavastus lastele | D182: . | E182: . | F182: . | G182: . | H182: . | I182: . | J182: .
B183: 2012 | C183: ..nukulavastus lastele | D183: . | E183: . | F183: . | G183: . | H183: . | I183: . | J183: .
B184: 2012 | C184: ..muu lastelavastus | D184: . | E184: . | F184: . | G184: . | H184: . | I184: . | J184: .
B185: 2012 | C185: Nuku- ja objektiteatri lavastus | D185: 34 | E185: 8 | F185: 583 | G185: 187 | H185: 68.2 | I185: 52.9 | J185: 4.47
B186: 2012 | C186: ..nukulavastus | D186: .. | E186: .. | F186: .. | G186: .. | H186: 58.3 | I186: 45.2 | J186: ..
B187: 2012 | C187: ..objektiteatri lavastus | D187: .. | E187: .. | F187: .. | G187: .. | H187: 0.3 | I187: 0.2 | J187: ..
B188: 2012 | C188: ..nuku- ja objektiteatri lavastus | D188: .. | E188: .. | F188: .. | G188: .. | H188: 9.6 | I188: 7.5 | J188: ..
B189: 2012 | C189: Mitmeliigilavastus | D189: 40 | E189: 32 | F189: 495 | G189: 127 | H189: 78.5 | I189: 60.8 | J189: 6.03
B190: 2012 | C190: ..sõna-, muusika- ja liikumislavastus | D190: .. | E190: .. | F190: .. | G190: .. | H190: 32.6 | I190: 25.3 | J190: ..
B191: 2012 | C191: ..muusika- ja liikumislavastus | D191: .. | E191: .. | F191: .. | G191: .. | H191: 8.2 | I191: 6.4 | J191: ..
B192: 2012 | C192: ..muu | D192: .. | E192: .. | F192: .. | G192: .. | H192: .. | I192: .. | J192: ..
B193: 2012 | C193: Muu lavastus | D193: 2 | E193: 1 | F193: 90 | G193: 83 | H193: 12.4 | I193: 29.2 | J193: ..
B194: 2012 | C194: Muu lavastus - tsirkus | D194: .. | E194: .. | F194: .. | G194: .. | H194: .. | I194: .. | J194: ..
A195: 2013 | B195: 2013 | C195: Kokku | D195: 490 | E195: 186 | F195: 5803 | G195: 1688 | H195: 1090.7 | I195: 827.5 | J195: 10.53
B196: 2013 | C196: Sõnalavastus | D196: 310 | E196: 117 | F196: 3828 | G196: 1039 | H196: 643.4 | I196: 488.1 | J196: 9.45
B197: 2013 | C197: ..draama | D197: 202 | E197: 69 | F197: 2434 | G197: .. | H197: 370.7 | I197: 281.3 | J197: ..
B198: 2013 | C198: ..komöödia | D198: 76 | E198: 30 | F198: 1103 | G198: .. | H198: 240.5 | I198: 182.5 | J198: ..
B199: 2013 | C199: ..tragikomöödia | D199: 21 | E199: 9 | F199: 210 | G199: .. | H199: 27.3 | I199: 20.7 | J199: ..
B200: 2013 | C200: ..muu sõnalavastus | D200: 5 | E200: 3 | F200: 72 | G200: .. | H200: 4.8 | I200: 3.7 | J200: ..
B201: 2013 | C201: Muusikalavastus | D201: 39 | E201: 11 | F201: 393 | G201: 42 | H201: 213.9 | I201: 162.3 | J201: 11.85
... 282 more rows

Sheet Rahvastik
B1: B.
D3: Rahvaarvud | L3: =_xlfn.FORMULATEXT(M6) -> =(E6-D6)/E6 | R3: =_xlfn.FORMULATEXT(R6) -> =RANK(Q6;$Q$6:$Q$20) | U3: =_xlfn.FORMULATEXT(U6) -> =INDEX(P6:P20;MATCH(T6;L6:L20;0))
V4: =_xlfn.FORMULATEXT(V6) -> =INDEX(R6:R20;MATCH(T6;L6:L20;0))
B5: Pindala, km² | C5: Maakond | D5: 2012 | E5: 2013 | F5: 2014 | G5: 2015 | H5: 2016 | I5: 2017 | L5: Maakond | M5: 2013 | N5: 2014 | O5: 2015 | P5: 2016 | Q5: 2017 | R5: RANK | T5: Maakond | U5: Juurdekasv 2016.a | V5: Koht
B6: 4333 | C6: Harju maakond | D6: 566741 | E6: 567967 | F6: 572103 | G6: 575601 | H6: 576265 | I6: 582556 | L6: Harju maakond | M6: =(E6-D6)/E6 -> 0.002158576114 | N6: =(F6-E6)/F6 -> 0.007229467421 | O6: 0.006077126343 | P6: 0.001152247664 | Q6: 0.01079896182 | R6: =RANK(Q6,$Q$6:$Q$20) -> 1 | T6: Saare maakond | U6: =INDEX(P6:P20,MATCH(T6,L6:L20,0)) -> 0.05301514292 | V6: =INDEX(R6:R20,MATCH(T6,L6:L20,0)) -> 5
B7: 1023 | C7: Hiiu maakond | D7: 8620 | E7: 8638 | F7: 8589 | G7: 8582 | H7: 9348 | I7: 9335 | L7: Hiiu maakond | M7: =(E7-D7)/E7 -> 0.002083815698 | N7: =(F7-E7)/F7 -> -0.005704971475 | O7: =(G7-F7)/G7 -> -0.0008156606852 | P7: =(H7-G7)/H7 -> 0.08194266153 | Q7: =(I7-H7)/I7 -> -0.001392608463 | R7: =RANK(Q7,$Q$6:$Q$20) -> 3
B8: 3364 | C8: Ida-Viru maakond | D8: 153716 | E8: 151909 | F8: 149483 | G8: 147597 | H8: 146506 | I8: 143880 | L8: Ida-Viru maakond | M8: -0.01189527941 | N8: -0.01622927022 | O8: -0.01277803749 | P8: -0.007446793988 | Q8: -0.01825132054 | R8: 15 | T8: Lähim väiksem | U8: Juurdekasv 2016.a | V8: Koht
B9: 2604 | C9: Jõgeva maakond | D9: 31967 | E9: 31587 | F9: 31145 | G9: 30841 | H9: 31298 | I9: 30840 | L9: Jõgeva maakond | M9: -0.01203026562 | N9: -0.01419168406 | O9: -0.009857008528 | P9: 0.01460157199 | Q9: -0.01485084306 | R9: 14 | T9: =IFERROR(INDEX(L6:L20,MATCH(V9,R6:R20,0)),"Ei ole") -> Pärnu maakond | U9: =IFERROR(INDEX(P6:P20,MATCH(T9,L6:L20,0)),"Ei ole") -> 0.007807511115 | V9: =V6+1 -> 6
B10: 2460 | C10: Järva maakond | D10: 31204 | E10: 30913 | F10: 30425 | G10: 30109 | H10: 30709 | I10: 30378 | L10: Järva maakond | M10: -0.00941351535 | N10: -0.01603944125 | O10: -0.01049520077 | P10: 0.01953824612 | Q10: -0.01089604319 | R10: 9
B11: 2383 | C11: Lääne maakond | D11: 24734 | E11: 24622 | F11: 24323 | G11: 24070 | H11: 24580 | I11: 24301 | L11: Lääne maakond | M11: -0.004548777516 | N11: -0.0122928915 | O11: -0.01051100956 | P11: 0.02074857608 | Q11: -0.01148100901 | R11: 10 | T11: =_xlfn.FORMULATEXT(T9) -> =IFERROR(INDEX(L6:L20;MATCH(V9;R6:R20;0));"Ei ole") | V11: =_xlfn.FORMULATEXT(V9) -> =V6+1
B12: 3628 | C12: Lääne-Viru maakond | D12: 61154 | E12: 60518 | F12: 59583 | G12: 59039 | H12: 59467 | I12: 58856 | L12: Lääne-Viru maakond | M12: -0.01050926997 | N12: -0.01569239548 | O12: -0.009214248209 | P12: 0.007197269074 | Q12: -0.01038126954 | R12: 8 | U12: =_xlfn.FORMULATEXT(U9) -> =IFERROR(INDEX(P6:P20;MATCH(T9;L6:L20;0));"Ei ole")
B13: 2165 | C13: Põlva maakond | D13: 28026 | E13: 27816 | F13: 27641 | G13: 27438 | H13: 28218 | I13: 27963 | L13: Põlva maakond | M13: -0.007549611734 | N13: -0.006331174704 | O13: -0.007398498433 | P13: 0.02764193068 | Q13: -0.00911919322 | R13: 7
B14: 4807 | C14: Pärnu maakond | D14: 84388 | E14: 83677 | F14: 82829 | G14: 82349 | H14: 82997 | I14: 82535 | L14: Pärnu maakond | M14: -0.008496958543 | N14: -0.01023796013 | O14: -0.005828850381 | P14: 0.007807511115 | Q14: -0.00559762525 | R14: 6
B15: 2980 | C15: Rapla maakond | D15: 35503 | E15: 35069 | F15: 34676 | G15: 34436 | H15: 34148 | I15: 34085 | L15: Rapla maakond | M15: -0.01237560238 | N15: -0.01133348714 | O15: -0.006969450575 | P15: -0.008433876069 | Q15: -0.001848320376 | R15: 4
B16: 2922 | C16: Saare maakond | D16: 31835 | E16: 31815 | F16: 31756 | G16: 31706 | H16: 33481 | I16: 33307 | L16: Saare maakond | M16: -0.000628634292 | N16: -0.001857916614 | O16: -0.001576988583 | P16: 0.05301514292 | Q16: -0.00522412706 | R16: 5
B17: 2993 | C17: Tartu maakond | D17: 153479 | E17: 153100 | F17: 152188 | G17: 151377 | H17: 145003 | I17: 145550 | L17: Tartu maakond | M17: -0.002475506205 | N17: -0.005992588115 | O17: -0.005357484955 | P17: -0.04395771122 | Q17: 0.003758158708 | R17: 2
B18: 2044 | C18: Valga maakond | D18: 31068 | E18: 30590 | F18: 30176 | G18: 29944 | H18: 30524 | I18: 30084 | L18: Valga maakond | M18: -0.01562602158 | N18: -0.0137195122 | O18: -0.007747795886 | P18: 0.01900144149 | Q18: -0.01462571467 | R18: 13
B19: 3422 | C19: Viljandi maakond | D19: 48604 | E19: 48127 | F19: 47476 | G19: 47010 | H19: 47853 | I19: 47288 | L19: Viljandi maakond | M19: -0.009911276414 | N19: -0.01371219142 | O19: -0.009912784514 | P19: 0.01761645038 | Q19: -0.01194806293 | R19: 11
B20: 2305 | C20: Võru maakond | D20: 34178 | E20: 33826 | F20: 33426 | G20: 33172 | H20: 33973 | I20: 33505 | L20: Võru maakond | M20: -0.01040619642 | N20: -0.01196673248 | O20: -0.007657060171 | P20: 0.02357754688 | Q20: -0.01396806447 | R20: 12

Sheet 100
A1: https://www.iaaf.org/records/toplists/sprints/100-metres/outdoor/men/senior
A5: Rank | B5: Mark | C5: WIND | D5: Competitor | E5: DOB | F5: Nat | G5: Pos | H5: Venue | I5: Date
A6: 1 | B6: 9.58 | C6: 0.9 | D6: Usain BOLT | E6: 21 AUG 1986 | F6: JAMJAM | G6: 1 | H6: Olympiastadion, Berlin (GER) | I6: 16 AUG 2009
A7: 2 | B7: 9.69 | C7: 2 | D7: Tyson GAY | E7: 09 AUG 1982 | F7: USAUSA | G7: 1 | H7: Shanghai (CHN) | I7: 20 SEP 2009
A8: 2 | B8: 9.69 | C8: -0.1 | D8: Yohan BLAKE | E8: 26 DEC 1989 | F8: JAMJAM | G8: 1 | H8: Stade Olympique de la Pontaise, Lausanne (SUI) | I8: 23 AUG 2012
A9: 4 | B9: 9.72 | C9: 0.2 | D9: Asafa POWELL | E9: 23 NOV 1982 | F9: JAMJAM | G9: 1f1 | H9: Stade Olympique de la Pontaise, Lausanne (SUI) | I9: 02 SEP 2008
A10: 5 | B10: 9.74 | C10: 0.9 | D10: Justin GATLIN | E10: 10 FEB 1982 | F10: USAUSA | G10: 1 | H10: Suhaim bin Hamad Stadium, Doha (QAT) | I10: 15 MAY 2015
A11: 6 | B11: 9.76 | C11: 0.6 | D11: Christian COLEMAN | E11: 06 MAR 1996 | F11: USAUSA | G11: 1 | H11: Khalifa International Stadium, Doha (QAT) | I11: 28 SEP 2019
A12: 6 | B12: 9.76 | C12: 1.2 | D12: Trayvon BROMELL | E12: 10 JUL 1995 | F12: USAUSA | G12: 1 | H12: Moi International Sports Centre, Kasarani, Nairobi (KEN) | I12: 18 SEP 2021
A13: 6 | B13: 9.76 | C13: 1.4 | D13: Fred KERLEY | E13: 07 MAY 1995 | F13: USAUSA | G13: 1sf1 | H13: Hayward Field, Eugene, OR (USA) | I13: 24 JUN 2022
A14: 9 | B14: 9.77 | C14: 1.2 | D14: Ferdinand OMANYALA | E14: 02 JAN 1996 | F14: KENKEN | G14: 2 | H14: Moi International Sports Centre, Kasarani, Nairobi (KEN) | I14: 18 SEP 2021
A15: 10 | B15: 9.78 | C15: 0.9 | D15: Nesta CARTER | E15: 11 OCT 1985 | F15: JAMJAM | G15: 1 | H15: Stadio Guidobaldi, Rieti (ITA) | I15: 29 AUG 2010
A16: 11 | B16: 9.79 | C16: 0.1 | D16: Maurice GREENE | E16: 23 JUL 1974 | F16: USAUSA | G16: 1f3 | H16: Athina (GRE) | I16: 16 JUN 1999
A17: 12 | B17: 9.8 | C17: 1.3 | D17: Steve MULLINGS | E17: 29 NOV 1982 | F17: JAMJAM | G17: 1 | H17: Hayward Field, Eugene, OR (USA) | I17: 04 JUN 2011
A18: 12 | B18: 9.8 | C18: 0.1 | D18: Lamont Marcell JACOBS | E18: 26 SEP 1994 | F18: ITAITA | G18: 1 | H18: National Stadium, Tokyo (JPN) | I18: 01 AUG 2021
A19: 14 | B19: 9.82 | C19: 1.7 | D19: Richard THOMPSON | E19: 07 JUN 1985 | F19: TTOTTO | G19: 1f2 | H19: Port-of-Spain (TTO) | I19: 21 JUN 2014
A20: 15 | B20: 9.83 | C20: 0.9 | D20: Bingtian SU | E20: 29 AUG 1989 | F20: CHNCHN | G20: 1sf3 | H20: National Stadium, Tokyo (JPN) | I20: 01 AUG 2021
A21: 15 | B21: 9.83 | C21: 0.9 | D21: Ronnie BAKER | E21: 15 OCT 1993 | F21: USAUSA | G21: 2sf3 | H21: National Stadium, Tokyo (JPN) | I21: 01 AUG 2021
A22: 17 | B22: 9.84 | C22: 0.7 | D22: Donovan BAILEY | E22: 16 DEC 1967 | F22: CANCAN | G22: 1 | H22: Olympic Stadium, Atlanta, GA (USA) | I22: 27 JUL 1996
A23: 17 | B23: 9.84 | C23: 0.2 | D23: Bruny SURIN | E23: 12 JUL 1967 | F23: CANCAN | G23: 2 | H23: La Cartuja, Sevilla (ESP) | I23: 22 AUG 1999
A24: 17 | B24: 9.84 | C24: 1.2 | D24: Akani SIMBINE | E24: 21 SEP 1993 | F24: RSARSA | G24: 1 | H24: Bregyó Athletic Center, Székesfehérvár (HUN) | I24: 06 JUL 2021
A25: 20 | B25: 9.85 | C25: 1.2 | D25: Leroy BURRELL | E25: 21 FEB 1967 | F25: USAUSA | G25: 1f3 | H25: Stade Olympique de la Pontaise, Lausanne (SUI) | I25: 06 JUL 1994
A26: 20 | B26: 9.85 | C26: 1.7 | D26: Olusoji Adetokunbo FASUBA | E26: 09 JUL 1984 | F26: NGRNGR | G26: 1 | H26: Doha (QAT) | I26: 12 MAY 2006
A27: 20 | B27: 9.85 | C27: 1.3 | D27: Michael RODGERS | E27: 24 APR 1985 | F27: USAUSA | G27: 2 | H27: Hayward Field, Eugene, OR (USA) | I27: 04 JUN 2011
A28: 20 | B28: 9.85 | C28: 1.5 | D28: Marvin BRACY | E28: 15 DEC 1993 | F28: USAUSA | G28: 2f2 | H28: Ansin Sports Complex, Miramar, FL (USA) | I28: 05 JUN 2021
A29: 24 | B29: 9.86 | C29: 1.2 | D29: Carl LEWIS | E29: 01 JUL 1961 | F29: USAUSA | G29: 1 | H29: National Stadium, Tokyo (JPN) | I29: 25 AUG 1991
A30: 24 | B30: 9.86 | C30: -0.4 | D30: Frank FREDERICKS | E30: 02 OCT 1967 | F30: NAMNAM | G30: 1f1 | H30: Lausanne (SUI) | I30: 03 JUL 1996
A31: 24 | B31: 9.86 | C31: 1.8 | D31: Ato BOLDON | E31: 30 DEC 1973 | F31: TTOTTO | G31: 1 | H31: Walnut, CA (USA) | I31: 19 APR 1998
A32: 24 | B32: 9.86 | C32: 0.6 | D32: Francis OBIKWELU | E32: 22 NOV 1978 | F32: PORPOR | G32: 2 | H32: Olympic Stadium, Athina (GRE) | I32: 22 AUG 2004
A33: 24 | B33: 9.86 | C33: 1.4 | D33: Keston BLEDMAN | E33: 08 MAR 1988 | F33: TTOTTO | G33: 1f2 | H33: Port-of-Spain (TTO) | I33: 23 JUN 2012
A34: 24 | B34: 9.86 | C34: 1.3 | D34: Jimmy VICAUT | E34: 27 FEB 1992 | F34: FRAFRA | G34: 2 | H34: Paris (FRA) | I34: 04 JUL 2015
A35: 24 | B35: 9.86 | C35: 0.9 | D35: Noah LYLES | E35: 18 JUL 1997 | F35: USAUSA | G35: 1 | H35: Shanghai Stadium, Shanghai (CHN) | I35: 18 MAY 2019
A36: 24 | B36: 9.86 | C36: 0.8 | D36: Divine ODUDURU | E36: 07 OCT 1996 | F36: NGRNGR | G36: 1 | H36: Austin, TX (USA) | I36: 07 JUN 2019
A37: 24 | B37: 9.86 | C37: 1.6 | D37: Michael NORMAN | E37: 03 DEC 1997 | F37: USAUSA | G37: 1f3 | H37: AP Ranch, Fort Worth, TX (USA) | I37: 20 JUL 2020
A38: 24 | B38: 9.86 | C38: 0.2 | D38: Oblique SEVILLE | E38: 16 MAR 2001 | F38: JAMJAM | G38: 1 | H38: National Stadium, Kingston (JAM) | I38: 21 MAY 2022
A39: 24 | B39: 9.86 | C39: 0.7 | D39: Micah WILLIAMS | E39: 12 NOV 2001 | F39: USAUSA | G39: 1h2 | H39: John McDonnell Field, Fayetteville, AR (USA) | I39: 27 MAY 2022
A40: 35 | B40: 9.87 | C40: 0.3 | D40: Linford CHRISTIE | E40: 02 APR 1960 | F40: GBRGBR | G40: 1 | H40: Gottlieb-Daimler Stadion, Stuttgart (GER) | I40: 15 AUG 1993
A41: 35 | B41: 9.87 | C41: -0.2 | D41: Obadele THOMPSON | E41: 30 MAR 1976 | F41: BARBAR | G41: 1 | H41: SGJ, Johannesburg (RSA) | I41: 11 SEP 1998
A42: 37 | B42: 9.88 | C42: 1.8 | D42: Shawn CRAWFORD | E42: 14 JAN 1978 | F42: USAUSA | G42: 1 | H42: Eugene, OR (USA) | I42: 19 JUN 2004
A43: 37 | B43: 9.88 | C43: 1 | D43: Walter DIX | E43: 31 JAN 1986 | F43: USAUSA | G43: 2f2 | H43: Luzern (SUI) | I43: 08 AUG 2010
A44: 37 | B44: 9.88 | C44: 0.9 | D44: Ryan BAILEY | E44: 13 APR 1989 | F44: USAUSA | G44: 2 | H44: Stadio Guidobaldi, Rieti (ITA) | I44: 29 AUG 2010
A45: 37 | B45: 9.88 | C45: 1 | D45: Michael FRATER | E45: 06 OCT 1982 | F45: JAMJAM | G45: 2 | H45: Stade Olympique de la Pontaise, Lausanne (SUI) | I45: 30 JUN 2011
A46: 41 | B46: 9.89 | C46: 1.6 | D46: Travis PADGETT | E46: 13 DEC 1986 | F46: USAUSA | G46: 1qf2 | H46: Eugene, OR (USA) | I46: 28 JUN 2008
A47: 41 | B47: 9.89 | C47: 1.6 | D47: Darvis PATTON | E47: 04 DEC 1977 | F47: USAUSA | G47: 1qf3 | H47: Eugene, OR (USA) | I47: 28 JUN 2008
A48: 41 | B48: 9.89 | C48: 1.3 | D48: Ngonidzashe MAKUSHA | E48: 11 MAR 1987 | F48: ZIMZIM | G48: 1 | H48: Des Moines, IA (USA) | I48: 10 JUN 2011
A49: 41 | B49: 9.89 | C49: 0.2 | D49: Isiah YOUNG | E49: 05 JAN 1990 | F49: USAUSA | G49: 1f1 | H49: National Training Center, Clermont, FL (USA) | I49: 30 MAY 2021
A50: 41 | B50: 9.89 | C50: 0.8 | D50: Kenneth BEDNAREK | E50: 14 OCT 1998 | F50: USAUSA | G50: 4 | H50: Hayward Field, Eugene, OR (USA) | I50: 20 JUN 2021
A51: 41 | B51: 9.89 | C51: 0.1 | D51: Andre DE GRASSE | E51: 10 NOV 1994 | F51: CANCAN | G51: 3 | H51: National Stadium, Tokyo (JPN) | I51: 01 AUG 2021
A52: 47 | B52: 9.9 | C52: 0.4 | D52: Nickel ASHMEADE | E52: 07 APR 1990 | F52: JAMJAM | G52: 1sf2 | H52: Luzhniki Stadion, Moskva (RUS) | I52: 11 AUG 2013
A53: 47 | B53: 9.9 | C53: 2 | D53: Benjamin AZAMATI | E53: 14 JAN 1998 | F53: GHAGHA | G53: 1h1 | H53: Mike A. Myers Stadium, Austin, TX (USA) | I53: 25 MAR 2022
A54: 47 | B54: 9.9 | C54: 1.8 | D54: Elijah HALL | E54: 22 AUG 1994 | F54: USAUSA | G54: 5 | H54: Hayward Field, Eugene, OR (USA) | I54: 24 JUN 2022
A55: 50 | B55: 9.91 | C55: 1.2 | D55: Dennis MITCHELL | E55: 20 FEB 1966 | F55: USAUSA | G55: 3 | H55: National Stadium, Tokyo (JPN) | I55: 25 AUG 1991
A56: 50 | B56: 9.91 | C56: 0.9 | D56: Leonard SCOTT | E56: 19 JAN 1980 | F56: USAUSA | G56: 2 | H56: Gottlieb-Daimler Stadion, Stuttgart (GER) | I56: 09 SEP 2006
A57: 50 | B57: 9.91 | C57: -0.5 | D57: Derrick ATKINS | E57: 05 JAN 1984 | F57: BAHBAH | G57: 2 | H57: Yanmar Stadium Nagai, Osaka (JPN) | I57: 26 AUG 2007
A58: 50 | B58: 9.91 | C58: -0.2 | D58: Daniel BAILEY | E58: 09 SEP 1986 | F58: ANTANT | G58: 2 | H58: Paris-St-Denis (FRA) | I58: 17 JUL 2009
A59: 50 | B59: 9.91 | C59: 0.7 | D59: Churandy MARTINA | E59: 03 JUL 1984 | F59: NEDNED | G59: 2sf1 | H59: Olympic Stadium, London (GBR) | I59: 05 AUG 2012
A60: 50 | B60: 9.91 | C60: 1.1 | D60: James DASAOLU | E60: 05 SEP 1987 | F60: GBRGBR | G60: 1sf2 | H60: Birmingham (GBR) | I60: 13 JUL 2013
A61: 50 | B61: 9.91 | C61: 1.8 | D61: Femi OGUNODE | E61: 15 MAY 1991 | F61: QATQAT | G61: 1 | H61: Wuhan (CHN) | I61: 04 JUN 2015
A62: 50 | B62: 9.91 | C62: 1 | D62: Julian FORTE | E62: 07 JAN 1993 | F62: JAMJAM | G62: 1 | H62: Olympiastadion, Berlin (GER) | I62: 27 AUG 2017
A63: 50 | B63: 9.91 | C63: 0.4 | D63: Zharnel HUGHES | E63: 13 JUL 1995 | F63: GBRGBR | G63: 1f1 | H63: Kingston (JAM) | I63: 09 JUN 2018
A64: 50 | B64: 9.91 | C64: 0.8 | D64: Letsile TEBOGO | E64: 07 JUN 2003 | F64: BOTBOT | G64: 1 | H64: Pascual Guerrero Stadium, Cali (COL) | I64: 02 AUG 2022
A65: 60 | B65: 9.92 | C65: 0.3 | D65: Andre CASON | E65: 20 JAN 1969 | F65: USAUSA | G65: 2 | H65: Gottlieb-Daimler Stadion, Stuttgart (GER) | I65: 15 AUG 1993
A66: 60 | B66: 9.92 | C66: 0.8 | D66: Jon DRUMMOND | E66: 09 SEP 1968 | F66: USAUSA | G66: h | H66: Indianapolis, IN (USA) | I66: 12 JUN 1997
A67: 60 | B67: 9.92 | C67: 0.2 | D67: Tim MONTGOMERY | E67: 28 JAN 1975 | F67: USAUSA | G67: 2 | H67: Indianapolis, IN (USA) | I67: 13 JUN 1997
A68: 60 | B68: 9.92 | C68: -0.2 | D68: Seun OGUNKOYA | E68: 28 DEC 1977 | F68: NGRNGR | G68: 2 | H68: SGJ, Johannesburg (RSA) | I68: 11 SEP 1998
A69: 60 | B69: 9.92 | C69: 1 | D69: Tim HARDEN | E69: 27 JAN 1974 | F69: USAUSA | G69: 1 | H69: Luzern (SUI) | I69: 05 JUL 1999
A70: 60 | B70: 9.92 | C70: 2 | D70: Christophe LEMAITRE | E70: 11 JUN 1990 | F70: FRAFRA | G70: 1 | H70: Albi (FRA) | I70: 29 JUL 2011
A71: 60 | B71: 9.92 | C71: -0.8 | D71: Kemar BAILEY-COLE | E71: 10 JAN 1992 | F71: JAMJAM | G71: 3 | H71: Olympic Stadium, London (GBR) | I71: 24 JUL 2015
A72: 60 | B72: 9.92 | C72: 0.9 | D72: Jak Ali HARVEY | E72: 04 MAY 1989 | F72: TURTUR | G72: 1f2 | H72: Erzurum (TUR) | I72: 12 JUN 2016
A73: 68 | B73: 9.93 | C73: 1.4 | D73: Calvin SMITH | E73: 08 JAN 1961 | F73: USAUSA | G73: 1 | H73: Air Force Academy (USA) | I73: 03 JUL 1983
A74: 68 | B74: 9.93 | C74: -0.6 | D74: Michael MARSH | E74: 04 AUG 1967 | F74: USAUSA | G74: 1f1 | H74: Walnut, CA (USA) | I74: 18 APR 1992
A75: 68 | B75: 9.93 | C75: 1.8 | D75: Patrick JOHNSON | E75: 26 SEP 1972 | F75: AUSAUS | G75: 1 | H75: Mito (JPN) | I75: 05 MAY 2003
A76: 68 | B76: 9.93 | C76: 1.1 | D76: Ivory WILLIAMS | E76: 02 MAY 1985 | F76: USAUSA | G76: 1f2 | H76: Rethymno (GRE) | I76: 20 JUL 2009
A77: 68 | B77: 9.93 | C77: 1.8 | D77: Kemarley BROWN | E77: 20 JUL 1992 | F77: JAMJAM | G77: 1 | H77: Walnut, CA (USA) | I77: 17 MAY 2014
A78: 68 | B78: 9.93 | C78: 1.7 | D78: Clayton VAUGHN | E78: 15 MAY 1992 | F78: USAUSA | G78: 1 | H78: Mobile, AL (USA) | I78: 08 MAY 2015
A79: 68 | B79: 9.93 | C79: 1.9 | D79: Kim COLLINS | E79: 05 APR 1976 | F79: SKNSKN | G79: 1f2 | H79: Bottrop (GER) | I79: 29 MAY 2016
A80: 68 | B80: 9.93 | C80: 0.8 | D80: Cameron BURRELL | E80: 11 SEP 1994 | F80: USAUSA | G80: 1sf2 | H80: Eugene, OR (USA) | I80: 07 JUN 2017
A81: 68 | B81: 9.93 | C81: 1.6 | D81: Christopher BELCHER | E81: 29 JAN 1994 | F81: USAUSA | G81: 1sf3 | H81: Eugene, OR (USA) | I81: 07 JUN 2017
A82: 68 | B82: 9.93 | C82: 0.8 | D82: Cravon GILLESPIE | E82: 31 JUL 1996 | F82: USAUSA | G82: 2 | H82: Austin, TX (USA) | I82: 07 JUN 2019
A83: 68 | B83: 9.93 | C83: 1.9 | D83: Arthur CISSÉ | E83: 29 DEC 1996 | F83: CIVCIV | G83: 1 | H83: Leverkusen (GER) | I83: 24 JUL 2019
A84: 68 | B84: 9.93 | C84: -1.2 | D84: Reece PRESCOD | E84: 29 FEB 1996 | F84: GBRGBR | G84: 1f1 | H84: Mestský Stadion, Ostrava (CZE) | I84: 31 MAY 2022
A85: 68 | B85: 9.93 | C85: 1 | D85: Ackeem BLAKE | E85: 21 JAN 2002 | F85: JAMJAM | G85: 3 | H85: National Stadium, Kingston (JAM) | I85: 24 JUN 2022
A86: 81 | B86: 9.94 | C86: 0.2 | D86: Davidson EZINWA | E86: 22 NOV 1971 | F86: NGRNGR | G86: 1 | H86: Linz (AUT) | I86: 04 JUL 1994
A87: 81 | B87: 9.94 | C87: -0.2 | D87: Bernard WILLIAMS | E87: 19 JAN 1978 | F87: USAUSA | G87: 2 | H87: Commonwealth Stadium, Edmonton (CAN) | I87: 05 AUG 2001
A88: 81 | B88: 9.94 | C88: 1.7 | D88: Diondre BATSON | E88: 13 JUL 1992 | F88: USAUSA | G88: 2h2 | H88: Hayward Field, Eugene, OR (USA) | I88: 25 JUN 2015
A89: 81 | B89: 9.94 | C89: 1.4 | D89: Andrew FISHER | E89: 15 DEC 1991 | F89: JAMJAM | G89: 2 | H89: Moratalaz, Madrid (ESP) | I89: 11 JUL 2015
A90: 81 | B90: 9.94 | C90: 1 | D90: Ameer WEBB | E90: 19 MAR 1991 | F90: USAUSA | G90: 2f1 | H90: Stadio Olimpico, Roma (ITA) | I90: 02 JUN 2016
A91: 81 | B91: 9.94 | C91: 0.9 | D91: Wayde VAN NIEKERK | E91: 15 JUL 1992 | F91: RSARSA | G91: 1f3 | H91: Velenje (SLO) | I91: 20 JUN 2017
A92: 81 | B92: 9.94 | C92: 1.6 | D92: Jo'Vaughn MARTIN | F92: USAUSA | G92: 1f2 | H92: Percy Beard Track, Gainesville, FL (USA) | I92: 17 APR 2021
A93: 81 | B93: 9.94 | C93: 1.3 | D93: Gift LEOTLELA | E93: 12 MAY 1998 | F93: RSARSA | G93: 1 | H93: UJ Stadium, Johannesburg (RSA) | I93: 14 MAY 2021
A94: 81 | B94: 9.94 | C94: 0.8 | D94: Joseph Paul AMOAH | E94: 12 JAN 1997 | F94: GHAGHA | G94: 1 | H94: Hughes Stadium, Morgan St. Univ., Baltimore, MD (USA) | I94: 23 APR 2022
A95: 90 | B95: 9.95 | C95: 0.3 | D95: Jim HINES | E95: 10 SEP 1946 | F95: USAUSA | G95: 1 | H95: Estadio Olímpico, Ciudad de México (MEX) | I95: 14 OCT 1968
A96: 90 | B96: 9.95 | C96: 0.8 | D96: Ben JOHNSON | E96: 30 DEC 1961 | F96: CANCAN | G96: 1f1 | H96: Moskva (URS) | I96: 09 JUL 1986
A97: 90 | B97: 9.95 | C97: 1.9 | D97: Olapade ADENIKEN | E97: 19 AUG 1969 | F97: NGRNGR | G97: 1f1 | H97: El Paso, TX (USA) | I97: 16 APR 1994
A98: 90 | B98: 9.95 | C98: 0.8 | D98: Vincent HENDERSON | E98: 20 OCT 1972 | F98: USAUSA | G98: 1 | H98: Leverkusen (GER) | I98: 09 AUG 1998
A99: 90 | B99: 9.95 | C99: 1.8 | D99: Joshua J. JOHNSON | E99: 10 MAY 1976 | F99: USAUSA | G99: 1 | H99: Walnut, CA (USA) | I99: 21 APR 2002
A100: 90 | B100: 9.95 | C100: 0.6 | D100: Deji ALIU | E100: 22 NOV 1975 | F100: NGRNGR | G100: 1 | H100: Abuja (NGR) | I100: 12 OCT 2003
A101: 90 | B101: 9.95 | C101: 1.8 | D101: John CAPEL | E101: 27 OCT 1978 | F101: USAUSA | G101: 3 | H101: Eugene, OR (USA) | I101: 19 JUN 2004
A102: 90 | B102: 9.95 | C102: 1.6 | D102: Rodney MARTIN | E102: 22 DEC 1982 | F102: USAUSA | G102: 2qf2 | H102: Eugene, OR (USA) | I102: 28 JUN 2008
A103: 90 | B103: 9.95 | C103: -0.8 | D103: Trell KIMMONS | E103: 13 JUL 1985 | F103: USAUSA | G103: 1f2 | H103: Letzigrund, Zürich (SUI) | I103: 19 AUG 2010
A104: 90 | B104: 9.95 | C104: 0.9 | D104: Mario FORSYTHE | E104: 30 OCT 1985 | F104: JAMJAM | G104: 3 | H104: Stadio Guidobaldi, Rieti (ITA) | I104: 29 AUG 2010
A105: 90 | B105: 9.95 | C105: 1.8 | D105: Kemar HYMAN | E105: 11 OCT 1989 | F105: CAYCAY | G105: 1h2 | H105: Moratalaz, Madrid (ESP) | I105: 07 JUL 2012
A106: 90 | B106: 9.95 | C106: 1.2 | D106: Thando ROTO | E106: 26 SEP 1995 | F106: RSARSA | G106: 2 | H106: Pretoria (RSA) | I106: 18 MAR 2017
A107: 90 | B107: 9.95 | C107: 2 | D107: Ryota YAMAGATA | E107: 10 JUN 1992 | F107: JPNJPN | G107: 1f1 | H107: Athletic Stadium, Tottori (JPN) | I107: 06 JUN 2021
A108: 103 | B108: 9.96 | C108: 0.1 | D108: Mel LATTANY | E108: 10 AUG 1959 | F108: USAUSA | G108: 1 | H108: Athens, GA (USA) | I108: 05 MAY 1984
A109: 103 | B109: 9.96 | C109: 1.2 | D109: Raymond STEWART | E109: 18 MAR 1965 | F109: JAMJAM | G109: 6 | H109: National Stadium, Tokyo (JPN) | I109: 25 AUG 1991
A110: 103 | B110: 9.96 | C110: 0.8 | D110: Kareem STREETE-THOMPSON | E110: 30 MAR 1973 | F110: USAUSA | G110: h | H110: Indianapolis, IN (USA) | I110: 12 JUN 1997
A111: 103 | B111: 9.96 | C111: 1 | D111: Marc BURNS | E111: 07 JAN 1983 | F111: TTOTTO | G111: 1 | H111: Port-of-Spain (TTO) | I111: 25 JUN 2005
A112: 103 | B112: 9.96 | C112: 0 | D112: Wallace SPEARMON | E112: 24 DEC 1984 | F112: USAUSA | G112: 1 | H112: Shanghai (CHN) | I112: 28 SEP 2007
A113: 103 | B113: 9.96 | C113: 1.4 | D113: Harry ADAMS | E113: 27 NOV 1989 | F113: USAUSA | G113: 1h2 | H113: Des Moines, IA (USA) | I113: 06 JUN 2012
A114: 103 | B114: 9.96 | C114: -0.4 | D114: Dentarius LOCKE | E114: 12 DEC 1989 | F114: USAUSA | G114: 2 | H114: Stade Louis II, Monaco (MON) | I114: 19 JUL 2013
A115: 103 | B115: 9.96 | C115: 1.4 | D115: Chijindu UJAH | E115: 05 MAR 1994 | F115: GBRGBR | G115: 2 | H115: Blankers-Koen Stadion, Hengelo (NED) | I115: 08 JUN 2014
A116: 103 | B116: 9.96 | C116: 1.3 | D116: Quentin BUTLER | E116: 18 SEP 1992 | F116: USAUSA | G116: 2h4 | H116: Hayward Field, Eugene, OR (USA) | I116: 25 JUN 2015
A117: 103 | B117: 9.96 | C117: 1.6 | D117: Senoj-Jay GIVANS | E117: 30 DEC 1993 | F117: JAMJAM | G117: 1sf3 | H117: Eugene, OR (USA) | I117: 08 JUN 2016
A118: 103 | B118: 9.96 | C118: 2 | D118: Aaron BROWN | E118: 27 MAY 1992 | F118: CANCAN | G118: 1h1 | H118: Montverde, FL (USA) | I118: 11 JUN 2016
A119: 103 | B119: 9.96 | C119: 2 | D119: Joel FEARON | E119: 11 OCT 1988 | F119: GBRGBR | G119: 1 | H119: Bedford (GBR) | I119: 30 JUL 2016
A120: 103 | B120: 9.96 | C120: 0.2 | D120: Ben Youssef MEITÉ | E120: 11 NOV 1986 | F120: CIVCIV | G120: 6 | H120: Estádio Olímpico, Rio de Janeiro (BRA) | I120: 14 AUG 2016
A121: 103 | B121: 9.96 | C121: 0.2 | D121: Tyquendo TRACEY | E121: 10 JUN 1993 | F121: JAMJAM | G121: 4h2 | H121: Olympic Stadium, London (GBR) | I121: 21 JUL 2018
A122: 103 | B122: 9.96 | C122: 1.6 | D122: Raymond EKEVWO | E122: 23 MAR 1999 | F122: NGRNGR | G122: 1 | H122: Complexe Sportif Prince Moulay Abdellah, Rabat (MAR) | I122: 27 AUG 2019
A123: 103 | B123: 9.96 | C123: 1.8 | D123: Kyree KING | E123: 09 JUL 1994 | F123: USAUSA | G123: 6 | H123: Hayward Field, Eugene, OR (USA) | I123: 24 JUN 2022
A124: 103 | B124: 9.96 | C124: 1.6 | D124: Yupun ABEYKOON | E124: 31 DEC 1994 | F124: SRISRI | G124: 1f1 | H124: Stade de La Charrière, La Chaux-de-Fonds (SUI) | I124: 03 JUL 2022
A125: 120 | B125: 9.97 | C125: 0.2 | D125: Dwain CHAMBERS | E125: 05 APR 1978 | F125: GBRGBR | G125: 3 | H125: La Cartuja, Sevilla (ESP) | I125: 22 AUG 1999
A126: 120 | B126: 9.97 | C126: 0.6 | D126: Uchenna EMEDOLU | E126: 17 SEP 1976 | F126: NGRNGR | G126: 2 | H126: Abuja (NGR) | I126: 12 OCT 2003
A127: 120 | B127: 9.97 | C127: 1.3 | D127: Rakieem SALAAM | E127: 05 APR 1990 | F127: USAUSA | G127: 2 | H127: Des Moines, IA (USA) | I127: 10 JUN 2011
A128: 120 | B128: 9.97 | C128: 2 | D128: Adam GEMILI | E128: 06 OCT 1993 | F128: GBRGBR | G128: 2 | H128: Alexander Stadium, Birmingham (GBR) | I128: 07 JUN 2015
A129: 120 | B129: 9.97 | C129: 0.8 | D129: Henricho BRUINTJIES | E129: 16 JUL 1993 | F129: RSARSA | G129: 1h1 | H129: La Chaux-de-Fonds (SUI) | I129: 05 JUL 2015
A130: 120 | B130: 9.97 | C130: 1.5 | D130: Ramil GULIYEV | E130: 29 MAY 1990 | F130: TURTUR | G130: 1 | H130: Bursa (TUR) | I130: 06 JUL 2017
A131: 120 | B131: 9.97 | C131: 0.9 | D131: Jaylen BACON | E131: 05 AUG 1996 | F131: USAUSA | G131: 1qf3 | H131: Sacramento, CA (USA) | I131: 25 MAY 2018
A132: 120 | B132: 9.97 | C132: 0.9 | D132: Zhenye XIE | E132: 17 AUG 1993 | F132: CHNCHN | G132: 1f1 | H132: Montreuil (FRA) | I132: 19 JUN 2018
A133: 120 | B133: 9.97 | C133: 1.7 | D133: Barakat AL HARTHI | E133: 15 JUN 1988 | F133: OMAOMA | G133: 1 | H133: Amman (JOR) | I133: 09 JUL 2018
A134: 120 | B134: 9.97 | C134: 0.8 | D134: Abdul Hakim SANI BROWN | E134: 06 MAR 1999 | F134: JPNJPN | G134: 3 | H134: Austin, TX (USA) | I134: 07 JUN 2019
A135: 130 | B135: 9.98 | C135: 0.6 | D135: Silvio LEONARD | E135: 20 SEP 1955 | F135: CUBCUB | G135: 1 | H135: Guadalajara (MEX) | I135: 11 AUG 1977
A136: 130 | B136: 9.98 | C136: 0.3 | D136: Daniel EFFIONG | E136: 17 JUN 1972 | F136: NGRNGR | G136: 2sf1 | H136: Gottlieb-Daimler Stadion, Stuttgart (GER) | I136: 15 AUG 1993
A137: 130 | B137: 9.98 | C137: 1.4 | D137: Percival SPENCER | E137: 24 FEB 1975 | F137: JAMJAM | G137: 1 | H137: Kingston (JAM) | I137: 19 JUN 1997
A138: 130 | B138: 9.98 | C138: 1.6 | D138: Leonard MYLES-MILLS | E138: 05 SEP 1973 | F138: GHAGHA | G138: 1 | H138: Boise, ID (USA) | I138: 05 JUN 1999
A139: 130 | B139: 9.98 | C139: 0.4 | D139: Jason GARDENER | E139: 17 SEP 1975 | F139: GBRGBR | G139: 3 | H139: Stade Olympique de la Pontaise, Lausanne (SUI) | I139: 02 JUL 1999
A140: 130 | B140: 9.98 | C140: 0.4 | D140: Coby MILLER | E140: 19 OCT 1976 | F140: USAUSA | G140: sf | H140: Durham, NC (USA) | I140: 02 JUN 2000
A141: 130 | B141: 9.98 | C141: 1.9 | D141: Gabriel MVUMVURE | E141: 23 FEB 1988 | F141: ZIMZIM | G141: 1f1 | H141: Montverde, FL (USA) | I141: 08 JUN 2013
A142: 130 | B142: 9.98 | C142: 1.1 | D142: Charles SILMON | E142: 04 JUL 1991 | F142: USAUSA | G142: 2 | H142: Drake Stadium, Des Moines, IA (USA) | I142: 21 JUN 2013
A143: 130 | B143: 9.98 | C143: 1.4 | D143: Simon MAGAKWE | E143: 14 MAY 1986 | F143: RSARSA | G143: 1 | H143: Pretoria (RSA) | I143: 12 APR 2014
A144: 130 | B144: 9.98 | C144: 2 | D144: Odean SKEEN | E144: 28 AUG 1994 | F144: JAMJAM | G144: 1h4 | H144: Auburn, AL (USA) | I144: 22 APR 2017
A145: 130 | B145: 9.98 | C145: 1.8 | D145: Yoshihide KIRYU | E145: 15 DEC 1995 | F145: JPNJPN | G145: 1 | H145: Fukui (JPN) | I145: 09 SEP 2017
A146: 130 | B146: 9.98 | C146: 1.9 | D146: Andre EWERS | E146: 07 JUN 1995 | F146: JAMJAM | G146: 1qf3 | H146: Tampa, FL (USA) | I146: 25 MAY 2018
A147: 130 | B147: 9.98 | C147: 1 | D147: Roberto SKYERS | E147: 12 NOV 1991 | F147: CUBCUB | G147: 1f1 | H147: Camagüey (CUB) | I147: 22 FEB 2019
A148: 130 | B148: 9.98 | C148: 1.3 | D148: Mario BURKE | E148: 18 MAR 1997 | F148: BARBAR | G148: 1sf2 | H148: Austin, TX (USA) | I148: 05 JUN 2019
A149: 130 | B149: 9.98 | C149: 0.5 | D149: Yuki KOIKE | E149: 13 MAY 1995 | F149: JPNJPN | G149: 4 | H149: Olympic Stadium, London (GBR) | I149: 20 JUL 2019
A150: 130 | B150: 9.98 | C150: 0.3 | D150: Enoch ADEGOKE | E150: 08 MAR 2000 | F150: NGRNGR | G150: 1h2 | H150: National Stadium, Tokyo (JPN) | I150: 31 JUL 2021
A151: 130 | B151: 9.98 | C151: 1.6 | D151: Matthew BOLING | E151: 20 JUN 2000 | F151: USAUSA | G151: 1f1 | H151: Percy Beard Track, Gainesville, FL (USA) | I151: 16 APR 2022
A152: 130 | B152: 9.98 | C152: 1.5 | D152: Cravont CHARLESTON | E152: 02 JAN 1998 | F152: USAUSA | G152: 1 | H152: Centre sportif Bout-du-Monde, Genève (SUI) | I152: 11 JUN 2022
A153: 130 | B153: 9.98 | C153: 1.1 | D153: Emmanuel MATADI | E153: 15 APR 1991 | F153: LBRLBR | G153: h4 | H153: Hasely Crawford Stadium, Port-of-Spain (TTO) | I153: 24 JUN 2022
A154: 149 | B154: 9.99 | C154: 0.5 | D154: Brian LEWIS | E154: 05 DEC 1974 | F154: USAUSA | G154: 1 | H154: Cayenne (GUY) | I154: 04 MAY 2002
A155: 149 | B155: 9.99 | C155: 1.5 | D155: Mickey GRIMES | E155: 10 OCT 1976 | F155: USAUSA | G155: 1f2 | H155: Zürich (SUI) | I155: 15 AUG 2003
A156: 149 | B156: 9.99 | C156: 1.6 | D156: Aziz ZAKARI | E156: 02 SEP 1976 | F156: GHAGHA | G156: 2 | H156: Olympic Stadium, Athina (GRE) | I156: 14 JUN 2005
A157: 149 | B157: 9.99 | C157: 1 | D157: Darrel BROWN | E157: 11 OCT 1984 | F157: TTOTTO | G157: 2 | H157: Port-of-Spain (TTO) | I157: 25 JUN 2005
A158: 149 | B158: 9.99 | C158: 1.8 | D158: Ronald POGNON | E158: 16 NOV 1982 | F158: FRAFRA | G158: 1f1 | H158: Stade Olympique de la Pontaise, Lausanne (SUI) | I158: 05 JUL 2005
A159: 149 | B159: 9.99 | C159: 1 | D159: Marcus BRUNSON | E159: 24 APR 1978 | F159: USAUSA | G159: 4f1 | H159: Zürich (SUI) | I159: 18 AUG 2006
A160: 149 | B160: 9.99 | C160: 0.9 | D160: Samuel FRANCIS | E160: 27 MAR 1987 | F160: QATQAT | G160: 1 | H160: Amman (JOR) | I160: 26 JUL 2007
A161: 149 | B161: 9.99 | C161: 1.6 | D161: Mark JELKS | E161: 10 APR 1984 | F161: USAUSA | G161: 3qf2 | H161: Eugene, OR (USA) | I161: 28 JUN 2008
A162: 149 | B162: 9.99 | C162: 0.4 | D162: Lerone CLARKE | E162: 07 JUL 1981 | F162: JAMJAM | G162: 1f2 | H162: Letzigrund, Zürich (SUI) | I162: 28 AUG 2009
A163: 149 | B163: 9.99 | C163: 1 | D163: Jaysuma SAIDY NDURE | E163: 01 JAN 1984 | F163: NORNOR | G163: 5 | H163: Stade Olympique de la Pontaise, Lausanne (SUI) | I163: 30 JUN 2011
A164: 149 | B164: 9.99 | C164: 1.6 | D164: Bryce ROBINSON | E164: 13 NOV 1993 | F164: USAUSA | G164: 1 | H164: Storrs, CT (USA) | I164: 16 MAY 2015
A165: 149 | B165: 9.99 | C165: 1.7 | D165: Beejay LEE | E165: 05 MAR 1993 | F165: USAUSA | G165: 3h2 | H165: Hayward Field, Eugene, OR (USA) | I165: 25 JUN 2015
A166: 149 | B166: 9.99 | C166: 2 | D166: Omar MCLEOD | E166: 25 APR 1994 | F166: JAMJAM | G166: 1f3 | H166: Fayetteville, AR (USA) | I166: 23 APR 2016
A167: 149 | B167: 9.99 | C167: 1.7 | D167: Rondel SORRILLO | E167: 24 JAN 1986 | F167: TTOTTO | G167: 2f2 | H167: Port-of-Spain (TTO) | I167: 25 JUN 2016
A168: 149 | B168: 9.99 | C168: 0.6 | D168: Nethaneel MITCHELL-BLAKE | E168: 02 APR 1994 | F168: GBRGBR | G168: 2 | H168: Columbia, SC (USA) | I168: 13 MAY 2017
A169: 149 | B169: 9.99 | C169: 1.1 | D169: Kendal WILLIAMS | E169: 23 SEP 1995 | F169: USAUSA | G169: 1 | H169: Knoxville, TN (USA) | I169: 13 MAY 2018
A170: 149 | B170: 9.99 | C170: 0.2 | D170: Filippo TORTU | E170: 15 JUN 1998 | F170: ITAITA | G170: 2 | H170: Moratalaz, Madrid (ESP) | I170: 22 JUN 2018
A171: 149 | B171: 9.99 | C171: 0.3 | D171: Davonte BURNETT | E171: 27 FEB 2000 | F171: JAMJAM | G171: 1 | H171: Hilmer Lodge Stadium, Walnut, CA (USA) | I171: 16 APR 2022
A172: 149 | B172: 9.99 | C172: 0.1 | D172: Favour Oghene Tejiri ASHE | E172: 28 APR 2002 | F172: NGRNGR | G172: 1 | H172: Samuel Ogbemudia Stadium, Benin City (NGR) | I172: 25 JUN 2022
A173: 149 | B173: 9.99 | C173: 1.6 | D173: Reynier MENA | E173: 21 NOV 1996 | F173: CUBCUB | G173: 2f1 | H173: Stade de La Charrière, La Chaux-de-Fonds (SUI) | I173: 03 JUL 2022
A174: 149 | B174: 9.99 | C174: 1.6 | D174: Méba Mickaël ZEZE | E174: 19 MAY 1994 | F174: FRAFRA | G174: 3f1 | H174: Stade de La Charrière, La Chaux-de-Fonds (SUI) | I174: 03 JUL 2022
A175: 170 | B175: 10 | C175: 2 | D175: Marian WORONIN | E175: 13 AUG 1956 | F175: POLPOL | G175: 1 | H175: Warszawa (POL) | I175: 09 JUN 1984
A176: 170 | B176: 10 | C176: 1 | D176: Chidi IMOH | E176: 27 AUG 1963 | F176: NGRNGR | G176: 1 | H176: Berlin (GER) | I176: 15 AUG 1986
A177: 170 | B177: 10 | C177: 1.6 | D177: Robson DA SILVA | E177: 04 SEP 1964 | F177: BRABRA | G177: 3h3 | H177: Ciudad de México (MEX) | I177: 22 JUL 1988
A178: 170 | B178: 10 | C178: 1.9 | D178: Koji ITO | E178: 29 JAN 1970 | F178: JPNJPN | G178: sf | H178: Bangkok (THA) | I178: 13 DEC 1998
A179: 170 | B179: 10 | C179: 1.1 | D179: Eric NKANSAH | E179: 12 DEC 1974 | F179: GHAGHA | G179: 3 | H179: Nürnberg (GER) | I179: 13 JUN 1999
A180: 170 | B180: 10 | C180: 0.5 | D180: Dwight THOMAS | E180: 23 SEP 1980 | F180: JAMJAM | G180: 1 | H180: Linz (AUT) | I180: 23 AUG 2005
A181: 170 | B181: 10 | C181: 0.4 | D181: Chris JOHNSON | E181: 28 APR 1982 | F181: USAUSA | G181: 1 | H181: Mesquite, TX (USA) | I181: 14 JUN 2008
A182: 170 | B182: 10 | C182: 1.6 | D182: Xavier CARTER | E182: 08 DEC 1985 | F182: USAUSA | G182: 3qf3 | H182: Eugene, OR (USA) | I182: 28 JUN 2008
A183: 170 | B183: 10 | C183: 1.4 | D183: Trindon HOLLIDAY | E183: 27 APR 1986 | F183: USAUSA | G183: 1h1 | H183: Fayetteville, AR (USA) | I183: 10 JUN 2009
A184: 170 | B184: 10 | C184: 1.4 | D184: Rae Monzavous EDWARDS | E184: 07 MAY 1981 | F184: USAUSA | G184: 1f2 | H184: Icahn Stadium, New York, NY (USA) | I184: 12 JUN 2010
A185: 170 | B185: 10 | C185: 1.3 | D185: Maurice MITCHELL | E185: 22 DEC 1989 | F185: USAUSA | G185: 3 | H185: Des Moines, IA (USA) | I185: 10 JUN 2011
A186: 170 | B186: 10 | C186: 0.4 | D186: Peimeng ZHANG | E186: 13 MAR 1987 | F186: CHNCHN | G186: 5sf2 | H186: Luzhniki Stadion, Moskva (RUS) | I186: 11 AUG 2013
A187: 170 | B187: 10 | C187: 1.6 | D187: Trentavis FRIDAY | E187: 05 JUN 1995 | F187: USAUSA | G187: 1h1 | H187: Eugene, OR (USA) | I187: 05 JUL 2014
A188: 170 | B188: 10 | C188: 1.9 | D188: John TEETERS | E188: 19 MAY 1993 | F188: USAUSA | G188: 1h5 | H188: Hayward Field, Eugene, OR (USA) | I188: 02 JUL 2016
A189: 170 | B189: 10 | C189: 2 | D189: Yunier PÉREZ | E189: 16 FEB 1985 | F189: CUBCUB | G189: 1h1 | H189: Moratalaz, Madrid (ESP) | I189: 14 JUL 2017
A190: 170 | B190: 10 | C190: 0.5 | D190: Cejhae GREENE | E190: 06 OCT 1995 | F190: ANTANT | G190: 1sf2 | H190: Barranquilla (COL) | I190: 29 JUL 2018
A191: 170 | B191: 10 | C191: 0.8 | D191: Tosin OGUNODE | E191: 02 MAR 1994 | F191: QATQAT | G191: 2 | H191: Jakarta (INA) | I191: 26 AUG 2018
A192: 170 | B192: 10 | C192: 1.3 | D192: Jerome BLAKE | E192: 18 AUG 1995 | F192: CANCAN | G192: 2f1 | H192: National Training Center, Clermont, FL (USA) | I192: 01 MAY 2022
A193: 170 | B193: 10 | C193: 1.1 | D193: Ismael KONE | E193: 06 NOV 2000 | F193: CIVCIV | G193: 1pr4 | H193: Billy Hayes T& F Complex, Bloomington, IN (USA) | I193: 25 MAY 2022
A194: 170 | B194: 10 | C194: 0.6 | D194: Joseph FAHNBULLEH | E194: 11 SEP 2001 | F194: LBRLBR | G194: 1 | H194: Hayward Field, Eugene, OR (USA) | I194: 10 JUN 2022
A195: 170 | B195: 10 | C195: 1.2 | D195: Conroy JONES | E195: 08 JUL 2002 | F195: JAMJAM | G195: 1h3 | H195: National Stadium, Kingston (JAM) | I195: 23 JUN 2022
A196: 170 | B196: 10 | C196: 1 | D196: Jelani WALKER | E196: 10 JUN 1998 | F196: JAMJAM | G196: 4 | H196: National Stadium, Kingston (JAM) | I196: 24 JUN 2022
A197: 192 | B197: 10.01 | C197: 0.9 | D197: Pietro MENNEA | E197: 28 JUN 1952 | F197: ITAITA | G197: 1f1 | H197: Ciudad de México (MEX) | I197: 04 SEP 1979
A198: 192 | B198: 10.01 | C198: 1.9 | D198: Bode OSAGIOBARE | E198: 01 DEC 1970 | F198: NGRNGR | G198: 2f1 | H198: El Paso, TX (USA) | I198: 16 APR 1994
A199: 192 | B199: 10.01 | C199: 0.6 | D199: Jeff LAYNES | E199: 03 OCT 1970 | F199: USAUSA | G199: 1 | H199: Tempe, AZ (USA) | I199: 06 APR 1996
A200: 192 | B200: 10.01 | C200: 0 | D200: Jason SMOOTS | E200: 13 JUL 1980 | F200: USAUSA | G200: 1 | H200: Rieti (ITA) | I200: 27 AUG 2006
A201: 192 | B201: 10.01 | C201: 1.6 | D201: Jeff DEMPS | E201: 08 JAN 1990 | F201: USAUSA | G201: 2qf1 | H201: Eugene, OR (USA) | I201: 28 JUN 2008
A202: 192 | B202: 10.01 | C202: 0.9 | D202: Jacoby FORD | E202: 27 JUL 1987 | F202: USAUSA | G202: 1h2 | H202: Fayetteville, AR (USA) | I202: 10 JUN 2009
A203: 192 | B203: 10.01 | C203: 2 | D203: Antoine ADAMS | E203: 31 AUG 1988 | F203: SKNSKN | G203: 1 | H203: Basseterre (SKN) | I203: 16 JUN 2013
... 102 more rows

Sheet Abi
B4: 1 | C4: JAN
B5: 2 | C5: FEB
B6: 3 | C6: MAR
B7: 4 | C7: APR
B8: 5 | C8: MAY
B9: 6 | C9: JUN
B10: 7 | C10: JUL
B11: 8 | C11: AUG
B12: 9 | C12: SEP
B13: 10 | C13: OCT
B14: 11 | C14: NOV
B15: 12 | C15: DEC

Sheet UN_Data
A1: COUNTRY | B1: Series | C1: Turistid
A2: AFGHANISTAN
A3: ALBANIA
A4: Arrivals - Thousands | B4: VF | C4: 3256
A5: Arrivals - Thousands | B5: TF | C5: 2857
A6: Arrivals - Thousands | B6: THS | C6: 118
A7: ALGERIA
A8: AMERICAN SAMOA
A9: Arrivals - Thousands | B9: TF | C9: 19.9
A10: ANDORRA
A11: Arrivals - Thousands | B11: TF | C11: 2335
A12: ANGOLA
A13: Arrivals - Thousands | B13: TF | C13: 650
A14: ANGUILLA
A15: Arrivals - Thousands | B15: TF | C15: 69
A16: ANTIGUA AND BARBUDA
A17: Arrivals - Thousands | B17: TF | C17: 243
A18: ARGENTINA
A19: Arrivals - Thousands | B19: TF | C19: 5571
A20: ARMENIA
A21: Arrivals - Thousands | B21: TF | C21: 1084
A22: ARUBA
A23: Arrivals - Thousands | B23: TF | C23: 979
A24: AUSTRALIA
A25: Arrivals - Thousands | B25: VF | C25: 6382
A26: AUSTRIA
A27: Arrivals - Thousands | B27: TCE | C27: 24813
A28: AZERBAIJAN
A29: Arrivals - Thousands | B29: VF | C29: 2509
A30: Arrivals - Thousands | B30: TF | C30: 2130
A31: BAHAMAS
A32: Arrivals - Thousands | B32: TF | C32: 1364
A33: BAHRAIN
A34: Arrivals - Thousands | B34: VF | C34: 9163
A35: BANGLADESH
A36: Arrivals - Thousands | B36: TF | C36: 148
A37: BARBADOS
A38: Arrivals - Thousands | B38: TF | C38: 509
A39: BELARUS
A40: Arrivals - Thousands | B40: TCE | C40: 966
A41: Arrivals - Thousands | B41: TF | C41: 137
A42: BELGIUM
A43: Arrivals - Thousands | B43: TCE | C43: 7684
A44: BELIZE
A45: Arrivals - Thousands | B45: TF | C45: 294
A46: BENIN
A47: Arrivals - Thousands | B47: TF | C47: 231
A48: BERMUDA
A49: Arrivals - Thousands | B49: TF | C49: 236
A50: BHUTAN
A51: Arrivals - Thousands | B51: TF | C51: 116
A52: BOLIVIA, PLURINATIONAL STATE OF
A53: Arrivals - Thousands | B53: TF | C53: 798
A54: BONAIRE
A55: BOSNIA AND HERZEGOVINA
A56: Arrivals - Thousands | B56: TCE | C56: 529
A57: BOTSWANA
A58: BRAZIL
A59: Arrivals - Thousands | B59: TF | C59: 5813
A60: BRITISH VIRGIN ISLANDS
A61: Arrivals - Thousands | B61: TF | C61: 366
A62: BRUNEI DARUSSALAM
A63: Arrivals - Thousands | B63: VF | C63: 3279
A64: Arrivals - Thousands | B64: TF | C64: 225
A65: BULGARIA
A66: Arrivals - Thousands | B66: TF | C66: 6898
A67: BURKINA FASO
A68: Arrivals - Thousands | B68: THS | C68: 218
A69: BURUNDI
A70: CABO VERDE
A71: Arrivals - Thousands | B71: TF | C71: 503
A72: CAMBODIA
A73: Arrivals - Thousands | B73: TF | C73: 4210
A74: CAMEROON
A75: Arrivals - Thousands | B75: VF | C75: 912
A76: CANADA
A77: Arrivals - Thousands | B77: TF | C77: 16059
A78: CAYMAN ISLANDS
A79: Arrivals - Thousands | B79: TF | C79: 345
A80: CENTRAL AFRICAN REPUBLIC
A81: CHAD
A82: Arrivals - Thousands | B82: TF | C82: 100
A83: Arrivals - Thousands | B83: THS | C83: 32
A84: CHILE
A85: Arrivals - Thousands | B85: TF | C85: 3576
A86: CHINA
A87: Arrivals - Thousands | B87: TF | C87: 55686
A88: COLOMBIA
A89: Arrivals - Thousands | B89: VF | C89: 2595
A90: Arrivals - Thousands | B90: TF | C90: 2288
A91: COMOROS
A92: CONGO
A93: Arrivals - Thousands | B93: TF | C93: 305
A94: Arrivals - Thousands | B94: THS | C94: 297
A95: CONGO, DEMOCRATIC REPUBLIC OF
A96: Arrivals - Thousands | B96: TF | C96: 191
A97: COOK ISLANDS
A98: Arrivals - Thousands | B98: TF | C98: 121
A99: COSTA RICA
A100: Arrivals - Thousands | B100: TF | C100: 2428
A101: COTE D'IVOIRE
A102: Arrivals - Thousands | B102: VF | C102: 380
A103: CROATIA
A104: Arrivals - Thousands | B104: TCE | C104: 10948
A105: CUBA
A106: Arrivals - Thousands | B106: TF | C106: 2829
A107: CURAÇAO
A108: Arrivals - Thousands | B108: TF | C108: 441
A109: CYPRUS
A110: Arrivals - Thousands | B110: TF | C110: 2405
A111: CZECH REPUBLIC
A112: Arrivals - Thousands | B112: TF | C112: 10300
A113: Arrivals - Thousands | B113: TCE | C113: 7852
A114: DENMARK
A115: Arrivals - Thousands | B115: TCE | C115: 8557
A116: DJIBOUTI
A117: Arrivals - Thousands | B117: THS | C117: 63
A118: DOMINICA
A119: Arrivals - Thousands | B119: TF | C119: 78
A120: DOMINICAN REPUBLIC
A121: Arrivals - Thousands | B121: TF | C121: 4690
A122: ECUADOR
A123: Arrivals - Thousands | B123: VF | C123: 1364
A124: EGYPT
A125: Arrivals - Thousands | B125: TF | C125: 9174
A126: EL SALVADOR
A127: Arrivals - Thousands | B127: TF | C127: 1283
A128: EQUATORIAL GUINEA
A129: ERITREA
A130: ESTONIA
A131: Arrivals - Thousands | B131: TF | C131: 2868
A132: ETHIOPIA
A133: Arrivals - Thousands | B133: TF | C133: 681
A134: FIJI
A135: Arrivals - Thousands | B135: TF | C135: 658
A136: FINLAND
A137: Arrivals - Thousands | B137: TCE | C137: 2797
A138: FRANCE
A139: Arrivals - Thousands | B139: TF | C139: 84726
A140: FRENCH GUIANA
A141: FRENCH POLYNESIA
A142: Arrivals - Thousands | B142: TF | C142: 164
A143: GABON
A144: GAMBIA
A145: Arrivals - Thousands | B145: TF | C145: 171
A146: GEORGIA
A147: Arrivals - Thousands | B147: VF | C147: 5392
A148: Arrivals - Thousands | B148: TF | C148: 2065
A149: GERMANY
A150: Arrivals - Thousands | B150: TCE | C150: 31545
A151: GHANA
A152: GREECE
A153: Arrivals - Thousands | B153: TF | C153: 17920
A154: GRENADA
A155: Arrivals - Thousands | B155: TF | C155: 116
A156: GUADELOUPE
A157: Arrivals - Thousands | B157: TF | C157: 487
A158: GUAM
A159: Arrivals - Thousands | B159: TF | C159: 1334
A160: GUATEMALA
A161: Arrivals - Thousands | B161: VF | C161: 2000
A162: Arrivals - Thousands | B162: TF | C162: 1331
A163: GUINEA
A164: Arrivals - Thousands | B164: TF | C164: 56
A165: GUINEA-BISSAU
A166: GUYANA
A167: HAITI
A168: Arrivals - Thousands | B168: TF | C168: 420
A169: HONDURAS
A170: Arrivals - Thousands | B170: TF | C170: 863
A171: HONG KONG, CHINA
A172: Arrivals - Thousands | B172: VF | C172: 54299
A173: Arrivals - Thousands | B173: TF | C173: 25661
A174: HUNGARY
A175: Arrivals - Thousands | B175: TF | C175: 10624
A176: Arrivals - Thousands | B176: TCE | C176: 4388
A177: ICELAND
A178: Arrivals - Thousands | B178: TF | C178: 807
A179: Arrivals - Thousands | B179: TCE | C179: 2019
A180: INDIA
A181: Arrivals - Thousands | B181: TF | C181: 6968
A182: INDONESIA
A183: Arrivals - Thousands | B183: TF | C183: 8802
A184: IRAN, ISLAMIC REPUBLIC OF
A185: Arrivals - Thousands | B185: VF | C185: 4769
A186: IRAQ
A187: Arrivals - Thousands | B187: VF | C187: 892
A188: IRELAND
A189: Arrivals - Thousands | B189: TF | C189: 8260
A190: ISRAEL
A191: Arrivals - Thousands | B191: TF | C191: 2962
A192: ITALY
A193: Arrivals - Thousands | B193: TF | C193: 47704
A194: JAMAICA
A195: Arrivals - Thousands | B195: TF | C195: 2008
A196: JAPAN
A197: Arrivals - Thousands | B197: VF | C197: 10364
A198: JORDAN
A199: Arrivals - Thousands | B199: TF | C199: 3945
A200: KAZAKHSTAN
... 233 more rows
